Workbook

Sheet Form
A1: verze I/2021
E4: OBJEDNÁVKA
A5: Zhotovitel: | C5: DMS Alfa, a.s.
C6: Americká 2772, Kladno | G6: tel: 312 663 234 | J6: www.dmsalfa.cz
C7: IČ:04940431 DIČ: CZ04940431 | J7: marcela.kucerova@dmsalfa.cz
C8: Společnost je zapsaná v obchodním rejstříku Městského soudu v Praze, oddíl B, vložka 21470
A10: Objednatel: | I10: IČ
I11: DIČ
I12: Telefon
I13: E-mail
I14: Termín | J14: =F49+21 -> 2020-12-24
A16: Objednatel objednává u zhotovitele zhotovení rolovacích MŘÍŽÍ dle následujícího popisu:
A18: Pozice | B18: Počet kusů | C18: Typ mříže | D18: Rozměr (mm) | E18: Rozměr (mm) | F18: Ovládání (pohled od balu) | I18: Bočnice | J18: Vodítko | K18: Negativní náběh
D19: Šířka A | E19: Výška B | F19: Strana | G19: Ruční | H19: motor | I19: Velikost C | J19: Velikost D
A20: 1
A21: 2
A22: 3
A23: 4
A24: 5
A25: 6
A26: 7
A27: 8
A28: 9
A29: Barva mříží | D29: pozink
A30: Barva vodítek | D30: pozink
A31: Způsob montáže
A32: Ocelová konstrukce
A33: Zámek v koncové liště
A34: Výška klíčového sp. od země
A35: Místo odběru:
A36: Cena celkem bez DPH: | F36: Cena celkem včetně 21 DPH: | I36: =D36*1.21 -> 0 | K36: Záloha:
A37: Způsob platby
A38: Příslušenství::
A42: Poznámky
A46: Objednatel prohlašuje, že se seznámil a souhlasí s obchodními podmínkami zhotovitele umístěnými na webových stránkách www.dmsalfa.cz/obchodni-podminky
A48: Objednatel je plně zodpovědný za rozměry a uvedené udaje a je povinen je zkontrolovat. Záruční lhůta činí 24 měsíců.
A49: V | E49: Dne | F49: =TODAY() -> 2020-12-03 | I49: podpis a razítko
A50: Za objednatele vyřizuje: | D50: Za DMS Alfa, a.s. vyřizuje:

Sheet Data (hidden)
B1: 1 | D1: 1 | F1: 1 | H1: 2
A2: Aria | B2: 1 | C2: centrální | D2: 1 | E2: Levá | F2: 1 | G2: montáž za otvor - přímá montáž | K2: ano
A3: Valencia P120 | B3: 1 | C3: boční | D3: 1 | E3: Pravá | F3: 1 | G3: montáž za otvor - pomocí plocháče | K3: ne
A4: Valencia P95 | B4: 1 | C4: žádný | D4: 1 | F4: 1 | G4: montáž za otvor - pomocí L profilu
A5: Valencia P60 | B5: 1 | C5: trubkový | D5: 1 | F5: 1 | G5: montáž za otvor - pomocí jackl profilu
A6: Verona S14 | B6: 1 | C6: trubkový NHK | D6: 1 | F6: 1 | G6: montáž v otvoru - přímá montáž
A7: Verona R14 | B7: 1 | D7: 1 | F7: 1 | G7: montáž v otvoru - pomocí L profilu
A8: Raventa | B8: 1 | D8: 1 | F8: 1 | G8: montáž v otvoru - pomocí jackl profilu, vedle vodítka
A9: Monako | B9: 1 | D9: 1 | F9: 1 | G9: montáž v otvoru - pomocí jackl profilu, za voditkem (pohled na bal)
G10: montáž v otvoru - pomocí plocháče

Sheet Valencia P120 (hidden)
A2: Šířka celková "A" [mm]: | B2: výška celková [mm]: | C2: hmotnost | D2: hřídel | E2: bočnice mm | F2: výška "B" mm
A3: 1500 | B3: 2250 | C3: =A3*B3*7.5/1000000 -> 25.3125 | D3: 48 | E3: 400 | F3: =B3-E3 -> 1850
A4: 1500 | B4: 2500 | C4: =A4*B4*7.5/1000000 -> 28.125 | D4: 48 | E4: 400 | F4: =B4-E4 -> 2100
A5: 1500 | B5: 2750 | C5: 30.9375 | D5: 48 | E5: 400 | F5: 2350
A6: 1500 | B6: 3000 | C6: 33.75 | D6: 48 | E6: 400 | F6: 2600
A7: 1500 | B7: 3250 | C7: 36.5625 | D7: 48 | E7: 400 | F7: 2850
A8: 1500 | B8: 3500 | C8: 39.375 | D8: 48 | E8: 400 | F8: 3100
A9: 1500 | B9: 3750 | C9: 42.1875 | D9: 48 | E9: 400 | F9: 3350
A10: 1500 | B10: 4050 | C10: 45.5625 | D10: 48 | E10: 400 | F10: 3650
A11: 1500 | B11: 4250 | C11: 47.8125 | D11: 48 | E11: 400 | F11: 3850
A12: 1500 | B12: 4500 | C12: 50.625 | D12: 76 | E12: 450 | F12: 4050
A13: 1500 | B13: 4750 | C13: 53.4375 | D13: 76 | E13: 500 | F13: 4250
A14: 1500 | B14: 5000 | C14: 56.25 | D14: 76 | E14: 500 | F14: 4500
A15: 1750 | B15: 2250 | C15: 29.53125 | D15: 48 | E15: 400 | F15: 1850
A16: 1750 | B16: 2500 | C16: 32.8125 | D16: 48 | E16: 400 | F16: 2100
A17: 1750 | B17: 2750 | C17: 36.09375 | D17: 48 | E17: 400 | F17: 2350
A18: 1750 | B18: 3000 | C18: 39.375 | D18: 48 | E18: 400 | F18: 2600
A19: 1750 | B19: 3250 | C19: 42.65625 | D19: 48 | E19: 400 | F19: 2850
A20: 1750 | B20: 3500 | C20: 45.9375 | D20: 48 | E20: 400 | F20: 3100
A21: 1750 | B21: 3750 | C21: 49.21875 | D21: 48 | E21: 400 | F21: 3350
A22: 1750 | B22: 4050 | C22: 53.15625 | D22: 48 | E22: 400 | F22: 3650
A23: 1750 | B23: 4250 | C23: 55.78125 | D23: 48 | E23: 400 | F23: 3850
A24: 1750 | B24: 4500 | C24: 59.0625 | D24: 76 | E24: 450 | F24: 4050
A25: 1750 | B25: 4750 | C25: 62.34375 | D25: 76 | E25: 500 | F25: 4250
A26: 1750 | B26: 5000 | C26: 65.625 | D26: 76 | E26: 500 | F26: 4500
A27: 2000 | B27: 2250 | C27: 33.75 | D27: 48 | E27: 400 | F27: 1850
A28: 2000 | B28: 2500 | C28: 37.5 | D28: 48 | E28: 400 | F28: 2100
A29: 2000 | B29: 2750 | C29: 41.25 | D29: 48 | E29: 400 | F29: 2350
A30: 2000 | B30: 3000 | C30: 45 | D30: 48 | E30: 400 | F30: 2600
A31: 2000 | B31: 3250 | C31: 48.75 | D31: 48 | E31: 400 | F31: 2850
A32: 2000 | B32: 3500 | C32: 52.5 | D32: 48 | E32: 400 | F32: 3100
A33: 2000 | B33: 3750 | C33: 56.25 | D33: 48 | E33: 400 | F33: 3350
A34: 2000 | B34: 4000 | C34: 60 | D34: 48 | E34: 400 | F34: 3600
A35: 2000 | B35: 4250 | C35: 63.75 | D35: 48 | E35: 400 | F35: 3850
A36: 2000 | B36: 4500 | C36: 67.5 | D36: 76 | E36: 450 | F36: 4050
A37: 2000 | B37: 4750 | C37: 71.25 | D37: 76 | E37: 500 | F37: 4250
A38: 2000 | B38: 5000 | C38: 75 | D38: 76 | E38: 500 | F38: 4500
A39: 2250 | B39: 2250 | C39: 37.96875 | D39: 48 | E39: 400 | F39: 1850
A40: 2250 | B40: 2500 | C40: 42.1875 | D40: 48 | E40: 400 | F40: 2100
A41: 2250 | B41: 2750 | C41: 46.40625 | D41: 48 | E41: 400 | F41: 2350
A42: 2250 | B42: 3000 | C42: 50.625 | D42: 48 | E42: 400 | F42: 2600
A43: 2250 | B43: 3250 | C43: 54.84375 | D43: 48 | E43: 400 | F43: 2850
A44: 2250 | B44: 3500 | C44: 59.0625 | D44: 48 | E44: 400 | F44: 3100
A45: 2250 | B45: 3750 | C45: 63.28125 | D45: 48 | E45: 400 | F45: 3350
A46: 2250 | B46: 4000 | C46: 67.5 | D46: 48 | E46: 400 | F46: 3600
A47: 2250 | B47: 4250 | C47: 71.71875 | D47: 48 | E47: 400 | F47: 3850
A48: 2250 | B48: 4500 | C48: 75.9375 | D48: 76 | E48: 450 | F48: 4050
A49: 2250 | B49: 4750 | C49: 80.15625 | D49: 76 | E49: 500 | F49: 4250
A50: 2250 | B50: 5000 | C50: 84.375 | D50: 76 | E50: 500 | F50: 4500
A51: 2500 | B51: 2250 | C51: 42.1875 | D51: 48 | E51: 400 | F51: 1850
A52: 2500 | B52: 2500 | C52: 46.875 | D52: 48 | E52: 400 | F52: 2100
A53: 2500 | B53: 2750 | C53: 51.5625 | D53: 48 | E53: 400 | F53: 2350
A54: 2500 | B54: 3000 | C54: 56.25 | D54: 48 | E54: 400 | F54: 2600
A55: 2500 | B55: 3250 | C55: 60.9375 | D55: 48 | E55: 400 | F55: 2850
A56: 2500 | B56: 3500 | C56: 65.625 | D56: 48 | E56: 400 | F56: 3100
A57: 2500 | B57: 3750 | C57: 70.3125 | D57: 48 | E57: 400 | F57: 3350
A58: 2500 | B58: 4000 | C58: 75 | D58: 48 | E58: 400 | F58: 3600
A59: 2500 | B59: 4250 | C59: 79.6875 | D59: 48 | E59: 400 | F59: 3850
A60: 2500 | B60: 4500 | C60: 84.375 | D60: 76 | E60: 450 | F60: 4050
A61: 2500 | B61: 4750 | C61: 89.0625 | D61: 76 | E61: 500 | F61: 4250
A62: 2500 | B62: 5000 | C62: 93.75 | D62: 76 | E62: 500 | F62: 4500
A63: 2750 | B63: 2250 | C63: 46.40625 | D63: 48 | E63: 400 | F63: 1850
A64: 2750 | B64: 2500 | C64: 51.5625 | D64: 48 | E64: 400 | F64: 2100
A65: 2750 | B65: 2750 | C65: 56.71875 | D65: 48 | E65: 400 | F65: 2350
A66: 2750 | B66: 3000 | C66: 61.875 | D66: 48 | E66: 400 | F66: 2600
A67: 2750 | B67: 3250 | C67: 67.03125 | D67: 48 | E67: 400 | F67: 2850
A68: 2750 | B68: 3500 | C68: =A68*B68*7.5/1000000 -> 72.1875 | D68: 48 | E68: 400 | F68: =B68-E68 -> 3100
A69: 2750 | B69: 3750 | C69: 77.34375 | D69: 48 | E69: 400 | F69: 3350
A70: 2750 | B70: 4000 | C70: 82.5 | D70: 48 | E70: 400 | F70: 3600
A71: 2750 | B71: 4250 | C71: 87.65625 | D71: 48 | E71: 400 | F71: 3850
A72: 2750 | B72: 4500 | C72: 92.8125 | D72: 76 | E72: 450 | F72: 4050
A73: 2750 | B73: 4750 | C73: 97.96875 | D73: 76 | E73: 500 | F73: 4250
A74: 2750 | B74: 5000 | C74: 103.125 | D74: 76 | E74: 500 | F74: 4500
A75: 3000 | B75: 2250 | C75: 50.625 | D75: 48 | E75: 400 | F75: 1850
A76: 3000 | B76: 2500 | C76: 56.25 | D76: 48 | E76: 400 | F76: 2100
A77: 3000 | B77: 2750 | C77: 61.875 | D77: 48 | E77: 400 | F77: 2350
A78: 3000 | B78: 3000 | C78: 67.5 | D78: 48 | E78: 400 | F78: 2600
A79: 3000 | B79: 3250 | C79: 73.125 | D79: 48 | E79: 400 | F79: 2850
A80: 3000 | B80: 3500 | C80: 78.75 | D80: 48 | E80: 400 | F80: 3100
A81: 3000 | B81: 3750 | C81: 84.375 | D81: 48 | E81: 400 | F81: 3350
A82: 3000 | B82: 4000 | C82: 90 | D82: 48 | E82: 400 | F82: 3600
A83: 3000 | B83: 4250 | C83: 95.625 | D83: 48 | E83: 400 | F83: 3850
A84: 3000 | B84: 4500 | C84: 101.25 | D84: 76 | E84: 450 | F84: 4050
A85: 3000 | B85: 4750 | C85: 106.875 | D85: 76 | E85: 500 | F85: 4250
A86: 3000 | B86: 5000 | C86: 112.5 | D86: 76 | E86: 500 | F86: 4500
A87: 3250 | B87: 2250 | C87: 54.84375 | D87: 48 | E87: 400 | F87: 1850
A88: 3250 | B88: 2500 | C88: 60.9375 | D88: 48 | E88: 400 | F88: 2100
A89: 3250 | B89: 2750 | C89: 67.03125 | D89: 48 | E89: 400 | F89: 2350
A90: 3250 | B90: 3000 | C90: 73.125 | D90: 48 | E90: 400 | F90: 2600
A91: 3250 | B91: 3250 | C91: 79.21875 | D91: 48 | E91: 400 | F91: 2850
A92: 3250 | B92: 3500 | C92: 85.3125 | D92: 48 | E92: 400 | F92: 3100
A93: 3250 | B93: 3750 | C93: 91.40625 | D93: 60 | E93: 400 | F93: 3350
A94: 3250 | B94: 4000 | C94: 97.5 | D94: 60 | E94: 400 | F94: 3600
A95: 3250 | B95: 4250 | C95: 103.59375 | D95: 60 | E95: 400 | F95: 3850
A96: 3250 | B96: 4500 | C96: 109.6875 | D96: 76 | E96: 450 | F96: 4050
A97: 3250 | B97: 4750 | C97: 115.78125 | D97: 76 | E97: 500 | F97: 4250
A98: 3250 | B98: 5000 | C98: 121.875 | D98: 76 | E98: 500 | F98: 4500
A99: 3500 | B99: 2250 | C99: 59.0625 | D99: 60 | E99: 400 | F99: 1850
A100: 3500 | B100: 2500 | C100: 65.625 | D100: 60 | E100: 400 | F100: 2100
A101: 3500 | B101: 2750 | C101: 72.1875 | D101: 60 | E101: 400 | F101: 2350
A102: 3500 | B102: 3000 | C102: 78.75 | D102: 60 | E102: 400 | F102: 2600
A103: 3500 | B103: 3250 | C103: 85.3125 | D103: 60 | E103: 400 | F103: 2850
A104: 3500 | B104: 3500 | C104: 91.875 | D104: 60 | E104: 400 | F104: 3100
A105: 3500 | B105: 3750 | C105: 98.4375 | D105: 60 | E105: 400 | F105: 3350
A106: 3500 | B106: 4000 | C106: 105 | D106: 60 | E106: 400 | F106: 3600
A107: 3500 | B107: 4250 | C107: 111.5625 | D107: 60 | E107: 400 | F107: 3850
A108: 3500 | B108: 4500 | C108: 118.125 | D108: 76 | E108: 450 | F108: 4050
A109: 3500 | B109: 4750 | C109: 124.6875 | D109: 76 | E109: 500 | F109: 4250
A110: 3500 | B110: 5000 | C110: 131.25 | D110: 76 | E110: 500 | F110: 4500
A111: 3750 | B111: 2250 | C111: 63.28125 | D111: 60 | E111: 400 | F111: 1850
A112: 3750 | B112: 2500 | C112: 70.3125 | D112: 60 | E112: 400 | F112: 2100
A113: 3750 | B113: 2750 | C113: 77.34375 | D113: 60 | E113: 400 | F113: 2350
A114: 3750 | B114: 3000 | C114: 84.375 | D114: 60 | E114: 400 | F114: 2600
A115: 3750 | B115: 3250 | C115: 91.40625 | D115: 60 | E115: 400 | F115: 2850
A116: 3750 | B116: 3500 | C116: 98.4375 | D116: 60 | E116: 400 | F116: 3100
A117: 3750 | B117: 3750 | C117: 105.46875 | D117: 60 | E117: 400 | F117: 3350
A118: 3750 | B118: 4000 | C118: 112.5 | D118: 60 | E118: 400 | F118: 3600
A119: 3750 | B119: 4250 | C119: 119.53125 | D119: 60 | E119: 400 | F119: 3850
A120: 3750 | B120: 4500 | C120: 126.5625 | D120: 76 | E120: 450 | F120: 4050
A121: 3750 | B121: 4750 | C121: 133.59375 | D121: 76 | E121: 500 | F121: 4250
A122: 3750 | B122: 5000 | C122: 140.625 | D122: 76 | E122: 500 | F122: 4500
A123: 4000 | B123: 2250 | C123: 67.5 | D123: 60 | E123: 400 | F123: 1850
A124: 4000 | B124: 2500 | C124: 75 | D124: 60 | E124: 400 | F124: 2100
A125: 4000 | B125: 2750 | C125: 82.5 | D125: 60 | E125: 400 | F125: 2350
A126: 4000 | B126: 3000 | C126: 90 | D126: 60 | E126: 400 | F126: 2600
A127: 4000 | B127: 3250 | C127: 97.5 | D127: 60 | E127: 400 | F127: 2850
A128: 4000 | B128: 3500 | C128: 105 | D128: 60 | E128: 400 | F128: 3100
A129: 4000 | B129: 3750 | C129: 112.5 | D129: 60 | E129: 400 | F129: 3350
A130: 4000 | B130: 4000 | C130: 120 | D130: 60 | E130: 400 | F130: 3600
A131: 4000 | B131: 4250 | C131: 127.5 | D131: 60 | E131: 400 | F131: 3850
A132: 4000 | B132: 4500 | C132: =A132*B132*7.5/1000000 -> 135 | D132: 76 | E132: 450 | F132: =B132-E132 -> 4050
A133: 4000 | B133: 4750 | C133: 142.5 | D133: 76 | E133: 500 | F133: 4250
A134: 4000 | B134: 5000 | C134: 150 | D134: 76 | E134: 500 | F134: 4500
A135: 4250 | B135: 2250 | C135: 71.71875 | D135: 60 | E135: 400 | F135: 1850
A136: 4250 | B136: 2500 | C136: 79.6875 | D136: 60 | E136: 400 | F136: 2100
A137: 4250 | B137: 2750 | C137: 87.65625 | D137: 60 | E137: 400 | F137: 2350
A138: 4250 | B138: 3000 | C138: 95.625 | D138: 60 | E138: 400 | F138: 2600
A139: 4250 | B139: 3250 | C139: 103.59375 | D139: 60 | E139: 400 | F139: 2850
A140: 4250 | B140: 3500 | C140: 111.5625 | D140: 60 | E140: 400 | F140: 3100
A141: 4250 | B141: 3750 | C141: 119.53125 | D141: 60 | E141: 400 | F141: 3350
A142: 4250 | B142: 4000 | C142: 127.5 | D142: 60 | E142: 400 | F142: 3600
A143: 4250 | B143: 4250 | C143: 135.46875 | D143: 60 | E143: 400 | F143: 3850
A144: 4250 | B144: 4500 | C144: 143.4375 | D144: 76 | E144: 450 | F144: 4050
A145: 4250 | B145: 4750 | C145: 151.40625 | D145: 76 | E145: 500 | F145: 4250
A146: 4250 | B146: 5000 | C146: 159.375 | D146: 76 | E146: 500 | F146: 4500
A147: 4500 | B147: 2250 | C147: 75.9375 | D147: 60 | E147: 400 | F147: 1850
A148: 4500 | B148: 2500 | C148: 84.375 | D148: 60 | E148: 400 | F148: 2100
A149: 4500 | B149: 2750 | C149: 92.8125 | D149: 60 | E149: 400 | F149: 2350
A150: 4500 | B150: 3000 | C150: 101.25 | D150: 60 | E150: 400 | F150: 2600
A151: 4500 | B151: 3250 | C151: 109.6875 | D151: 60 | E151: 400 | F151: 2850
A152: 4500 | B152: 3500 | C152: 118.125 | D152: 60 | E152: 400 | F152: 3100
A153: 4500 | B153: 3750 | C153: 126.5625 | D153: 60 | E153: 400 | F153: 3350
A154: 4500 | B154: 4000 | C154: 135 | D154: 60 | E154: 400 | F154: 3600
A155: 4500 | B155: 4250 | C155: 143.4375 | D155: 76 | E155: 450 | F155: 3800
A156: 4500 | B156: 4500 | C156: 151.875 | D156: 76 | E156: 450 | F156: 4050
A157: 4500 | B157: 4750 | C157: 160.3125 | D157: 76 | E157: 500 | F157: 4250
A158: 4500 | B158: 5000 | C158: 168.75 | D158: 76 | E158: 500 | F158: 4500
A159: 4750 | B159: 2250 | C159: 80.15625 | D159: 60 | E159: 400 | F159: 1850
A160: 4750 | B160: 2500 | C160: 89.0625 | D160: 60 | E160: 400 | F160: 2100
A161: 4750 | B161: 2750 | C161: 97.96875 | D161: 60 | E161: 400 | F161: 2350
A162: 4750 | B162: 3000 | C162: 106.875 | D162: 60 | E162: 400 | F162: 2600
A163: 4750 | B163: 3250 | C163: 115.78125 | D163: 60 | E163: 400 | F163: 2850
A164: 4750 | B164: 3500 | C164: 124.6875 | D164: 60 | E164: 400 | F164: 3100
A165: 4750 | B165: 3750 | C165: 133.59375 | D165: 76 | E165: 400 | F165: 3350
A166: 4750 | B166: 4000 | C166: 142.5 | D166: 76 | E166: 400 | F166: 3600
A167: 4750 | B167: 4250 | C167: 151.40625 | D167: 76 | E167: 450 | F167: 3800
A168: 4750 | B168: 4500 | C168: 160.3125 | D168: 76 | E168: 450 | F168: 4050
A169: 4750 | B169: 4750 | C169: 169.21875 | D169: 76 | E169: 500 | F169: 4250
A170: 4750 | B170: 5000 | C170: 178.125 | D170: 76 | E170: 500 | F170: 4500
A171: 5000 | B171: 2250 | C171: 84.375 | D171: 60 | E171: 400 | F171: 1850
A172: 5000 | B172: 2500 | C172: 93.75 | D172: 60 | E172: 400 | F172: 2100
A173: 5000 | B173: 2750 | C173: 103.125 | D173: 60 | E173: 400 | F173: 2350
A174: 5000 | B174: 3000 | C174: 112.5 | D174: 76 | E174: 400 | F174: 2600
A175: 5000 | B175: 3250 | C175: 121.875 | D175: 76 | E175: 400 | F175: 2850
A176: 5000 | B176: 3500 | C176: 131.25 | D176: 76 | E176: 400 | F176: 3100
A177: 5000 | B177: 3750 | C177: 140.625 | D177: 76 | E177: 400 | F177: 3350
A178: 5000 | B178: 4000 | C178: 150 | D178: 76 | E178: 400 | F178: 3600
A179: 5000 | B179: 4250 | C179: 159.375 | D179: 76 | E179: 450 | F179: 3800
A180: 5000 | B180: 4500 | C180: 168.75 | D180: 76 | E180: 450 | F180: 4050
A181: 5000 | B181: 4750 | C181: 178.125 | D181: 76 | E181: 500 | F181: 4250
A182: 5000 | B182: 5000 | C182: 187.5 | D182: 76 | E182: 500 | F182: 4500
A183: 5250 | B183: 2250 | C183: 88.59375 | D183: 60 | E183: 400 | F183: 1850
A184: 5250 | B184: 2500 | C184: 98.4375 | D184: 60 | E184: 400 | F184: 2100
A185: 5250 | B185: 2750 | C185: 108.28125 | D185: 76 | E185: 400 | F185: 2350
A186: 5250 | B186: 3000 | C186: 118.125 | D186: 76 | E186: 400 | F186: 2600
A187: 5250 | B187: 3250 | C187: 127.96875 | D187: 76 | E187: 400 | F187: 2850
A188: 5250 | B188: 3500 | C188: 137.8125 | D188: 76 | E188: 400 | F188: 3100
A189: 5250 | B189: 3750 | C189: 147.65625 | D189: 76 | E189: 400 | F189: 3350
A190: 5250 | B190: 4000 | C190: 157.5 | D190: 76 | E190: 400 | F190: 3600
A191: 5250 | B191: 4250 | C191: 167.34375 | D191: 76 | E191: 450 | F191: 3800
A192: 5250 | B192: 4500 | C192: 177.1875 | D192: 76 | E192: 450 | F192: 4050
A193: 5250 | B193: 4750 | C193: 187.03125 | D193: 76 | E193: 500 | F193: 4250
A194: 5250 | B194: 5000 | C194: 196.875 | D194: 76 | E194: 500 | F194: 4500
A195: 5500 | B195: 2250 | C195: 92.8125 | D195: 60 | E195: 400 | F195: 1850
A196: 5500 | B196: 2500 | C196: =A196*B196*7.5/1000000 -> 103.125 | D196: 76 | E196: 400 | F196: =B196-E196 -> 2100
A197: 5500 | B197: 2750 | C197: 113.4375 | D197: 76 | E197: 400 | F197: 2350
A198: 5500 | B198: 3000 | C198: 123.75 | D198: 76 | E198: 400 | F198: 2600
A199: 5500 | B199: 3250 | C199: 134.0625 | D199: 76 | E199: 400 | F199: 2850
A200: 5500 | B200: 3500 | C200: 144.375 | D200: 76 | E200: 400 | F200: 3100
A201: 5500 | B201: 3750 | C201: 154.6875 | D201: 76 | E201: 400 | F201: 3350
... 149 more rows

Sheet Valencia P95 (hidden)
A2: Šířka celková "A" [mm]: | B2: výška celková [mm]: | C2: hmotnost | D2: hřídel | E2: bočnice mm | F2: výška "B" mm
A3: 1500 | B3: 2250 | C3: =A3*B3*9/1000000 -> 30.375 | D3: 48 | E3: 400 | F3: =B3-E3 -> 1850
A4: 1500 | B4: 2500 | C4: 33.75 | D4: 48 | E4: 400 | F4: 2100
A5: 1500 | B5: 2750 | C5: 37.125 | D5: 48 | E5: 400 | F5: 2350
A6: 1500 | B6: 3000 | C6: 40.5 | D6: 48 | E6: 400 | F6: 2600
A7: 1500 | B7: 3250 | C7: 43.875 | D7: 48 | E7: 400 | F7: 2850
A8: 1500 | B8: 3500 | C8: 47.25 | D8: 48 | E8: 400 | F8: 3100
A9: 1500 | B9: 3750 | C9: 50.625 | D9: 48 | E9: 400 | F9: 3350
A10: 1500 | B10: 4000 | C10: 54 | D10: 48 | E10: 400 | F10: 3600
A11: 1500 | B11: 4250 | C11: 57.375 | D11: 48 | E11: 400 | F11: 3850
A12: 1500 | B12: 4500 | C12: 60.75 | D12: 76 | E12: 450 | F12: 4050
A13: 1500 | B13: 4750 | C13: 64.125 | D13: 76 | E13: 500 | F13: 4250
A14: 1500 | B14: 5000 | C14: 67.5 | D14: 76 | E14: 500 | F14: 4500
A15: 1750 | B15: 2250 | C15: 35.4375 | D15: 48 | E15: 400 | F15: 1850
A16: 1750 | B16: 2500 | C16: 39.375 | D16: 48 | E16: 400 | F16: 2100
A17: 1750 | B17: 2750 | C17: 43.3125 | D17: 48 | E17: 400 | F17: 2350
A18: 1750 | B18: 3000 | C18: 47.25 | D18: 48 | E18: 400 | F18: 2600
A19: 1750 | B19: 3250 | C19: 51.1875 | D19: 48 | E19: 400 | F19: 2850
A20: 1750 | B20: 3500 | C20: 55.125 | D20: 48 | E20: 400 | F20: 3100
A21: 1750 | B21: 3750 | C21: 59.0625 | D21: 48 | E21: 400 | F21: 3350
A22: 1750 | B22: 4000 | C22: 63 | D22: 48 | E22: 400 | F22: 3600
A23: 1750 | B23: 4250 | C23: 66.9375 | D23: 48 | E23: 400 | F23: 3850
A24: 1750 | B24: 4500 | C24: 70.875 | D24: 76 | E24: 450 | F24: 4050
A25: 1750 | B25: 4750 | C25: 74.8125 | D25: 76 | E25: 500 | F25: 4250
A26: 1750 | B26: 5000 | C26: 78.75 | D26: 76 | E26: 500 | F26: 4500
A27: 2000 | B27: 2250 | C27: 40.5 | D27: 48 | E27: 400 | F27: 1850
A28: 2000 | B28: 2500 | C28: 45 | D28: 48 | E28: 400 | F28: 2100
A29: 2000 | B29: 2750 | C29: 49.5 | D29: 48 | E29: 400 | F29: 2350
A30: 2000 | B30: 3000 | C30: 54 | D30: 48 | E30: 400 | F30: 2600
A31: 2000 | B31: 3250 | C31: 58.5 | D31: 48 | E31: 400 | F31: 2850
A32: 2000 | B32: 3500 | C32: 63 | D32: 48 | E32: 400 | F32: 3100
A33: 2000 | B33: 3750 | C33: 67.5 | D33: 48 | E33: 400 | F33: 3350
A34: 2000 | B34: 4000 | C34: 72 | D34: 48 | E34: 400 | F34: 3600
A35: 2000 | B35: 4250 | C35: 76.5 | D35: 48 | E35: 400 | F35: 3850
A36: 2000 | B36: 4500 | C36: 81 | D36: 76 | E36: 450 | F36: 4050
A37: 2000 | B37: 4750 | C37: 85.5 | D37: 76 | E37: 500 | F37: 4250
A38: 2000 | B38: 5000 | C38: 90 | D38: 76 | E38: 500 | F38: 4500
A39: 2250 | B39: 2250 | C39: 45.5625 | D39: 48 | E39: 400 | F39: 1850
A40: 2250 | B40: 2500 | C40: 50.625 | D40: 48 | E40: 400 | F40: 2100
A41: 2250 | B41: 2750 | C41: 55.6875 | D41: 48 | E41: 400 | F41: 2350
A42: 2250 | B42: 3000 | C42: 60.75 | D42: 48 | E42: 400 | F42: 2600
A43: 2250 | B43: 3250 | C43: 65.8125 | D43: 48 | E43: 400 | F43: 2850
A44: 2250 | B44: 3500 | C44: 70.875 | D44: 48 | E44: 400 | F44: 3100
A45: 2250 | B45: 3750 | C45: 75.9375 | D45: 48 | E45: 400 | F45: 3350
A46: 2250 | B46: 4000 | C46: 81 | D46: 48 | E46: 400 | F46: 3600
A47: 2250 | B47: 4250 | C47: 86.0625 | D47: 48 | E47: 400 | F47: 3850
A48: 2250 | B48: 4500 | C48: 91.125 | D48: 76 | E48: 450 | F48: 4050
A49: 2250 | B49: 4750 | C49: 96.1875 | D49: 76 | E49: 500 | F49: 4250
A50: 2250 | B50: 5000 | C50: 101.25 | D50: 76 | E50: 500 | F50: 4500
A51: 2500 | B51: 2250 | C51: 50.625 | D51: 48 | E51: 400 | F51: 1850
A52: 2500 | B52: 2500 | C52: 56.25 | D52: 48 | E52: 400 | F52: 2100
A53: 2500 | B53: 2750 | C53: 61.875 | D53: 48 | E53: 400 | F53: 2350
A54: 2500 | B54: 3000 | C54: 67.5 | D54: 48 | E54: 400 | F54: 2600
A55: 2500 | B55: 3250 | C55: 73.125 | D55: 48 | E55: 400 | F55: 2850
A56: 2500 | B56: 3500 | C56: 78.75 | D56: 48 | E56: 400 | F56: 3100
A57: 2500 | B57: 3750 | C57: 84.375 | D57: 48 | E57: 400 | F57: 3350
A58: 2500 | B58: 4000 | C58: 90 | D58: 48 | E58: 400 | F58: 3600
A59: 2500 | B59: 4250 | C59: 95.625 | D59: 48 | E59: 400 | F59: 3850
A60: 2500 | B60: 4500 | C60: 101.25 | D60: 76 | E60: 450 | F60: 4050
A61: 2500 | B61: 4750 | C61: 106.875 | D61: 76 | E61: 500 | F61: 4250
A62: 2500 | B62: 5000 | C62: 112.5 | D62: 76 | E62: 500 | F62: 4500
A63: 2750 | B63: 2250 | C63: 55.6875 | D63: 48 | E63: 400 | F63: 1850
A64: 2750 | B64: 2500 | C64: 61.875 | D64: 48 | E64: 400 | F64: 2100
A65: 2750 | B65: 2750 | C65: 68.0625 | D65: 48 | E65: 400 | F65: 2350
A66: 2750 | B66: 3000 | C66: 74.25 | D66: 48 | E66: 400 | F66: 2600
A67: 2750 | B67: 3250 | C67: =A67*B67*9/1000000 -> 80.4375 | D67: 48 | E67: 400 | F67: =B67-E67 -> 2850
A68: 2750 | B68: 3500 | C68: 86.625 | D68: 48 | E68: 400 | F68: 3100
A69: 2750 | B69: 3750 | C69: 92.8125 | D69: 48 | E69: 400 | F69: 3350
A70: 2750 | B70: 4000 | C70: 99 | D70: 48 | E70: 400 | F70: 3600
A71: 2750 | B71: 4250 | C71: 105.1875 | D71: 48 | E71: 400 | F71: 3850
A72: 2750 | B72: 4500 | C72: 111.375 | D72: 76 | E72: 450 | F72: 4050
A73: 2750 | B73: 4750 | C73: 117.5625 | D73: 76 | E73: 500 | F73: 4250
A74: 2750 | B74: 5000 | C74: 123.75 | D74: 76 | E74: 500 | F74: 4500
A75: 3000 | B75: 2250 | C75: 60.75 | D75: 48 | E75: 400 | F75: 1850
A76: 3000 | B76: 2500 | C76: 67.5 | D76: 48 | E76: 400 | F76: 2100
A77: 3000 | B77: 2750 | C77: 74.25 | D77: 48 | E77: 400 | F77: 2350
A78: 3000 | B78: 3000 | C78: 81 | D78: 48 | E78: 400 | F78: 2600
A79: 3000 | B79: 3250 | C79: 87.75 | D79: 48 | E79: 400 | F79: 2850
A80: 3000 | B80: 3500 | C80: 94.5 | D80: 48 | E80: 400 | F80: 3100
A81: 3000 | B81: 3750 | C81: 101.25 | D81: 48 | E81: 400 | F81: 3350
A82: 3000 | B82: 4000 | C82: 108 | D82: 48 | E82: 400 | F82: 3600
A83: 3000 | B83: 4250 | C83: 114.75 | D83: 60 | E83: 400 | F83: 3850
A84: 3000 | B84: 4500 | C84: 121.5 | D84: 76 | E84: 450 | F84: 4050
A85: 3000 | B85: 4750 | C85: 128.25 | D85: 76 | E85: 500 | F85: 4250
A86: 3000 | B86: 5000 | C86: 135 | D86: 76 | E86: 500 | F86: 4500
A87: 3250 | B87: 2250 | C87: 65.8125 | D87: 48 | E87: 400 | F87: 1850
A88: 3250 | B88: 2500 | C88: 73.125 | D88: 48 | E88: 400 | F88: 2100
A89: 3250 | B89: 2750 | C89: 80.4375 | D89: 48 | E89: 400 | F89: 2350
A90: 3250 | B90: 3000 | C90: 87.75 | D90: 48 | E90: 400 | F90: 2600
A91: 3250 | B91: 3250 | C91: 95.0625 | D91: 48 | E91: 400 | F91: 2850
A92: 3250 | B92: 3500 | C92: 102.375 | D92: 60 | E92: 400 | F92: 3100
A93: 3250 | B93: 3750 | C93: 109.6875 | D93: 60 | E93: 400 | F93: 3350
A94: 3250 | B94: 4000 | C94: 117 | D94: 60 | E94: 400 | F94: 3600
A95: 3250 | B95: 4250 | C95: 124.3125 | D95: 60 | E95: 400 | F95: 3850
A96: 3250 | B96: 4500 | C96: 131.625 | D96: 76 | E96: 450 | F96: 4050
A97: 3250 | B97: 4750 | C97: 138.9375 | D97: 76 | E97: 500 | F97: 4250
A98: 3250 | B98: 5000 | C98: 146.25 | D98: 76 | E98: 500 | F98: 4500
A99: 3500 | B99: 2250 | C99: 70.875 | D99: 60 | E99: 400 | F99: 1850
A100: 3500 | B100: 2500 | C100: 78.75 | D100: 60 | E100: 400 | F100: 2100
A101: 3500 | B101: 2750 | C101: 86.625 | D101: 60 | E101: 400 | F101: 2350
A102: 3500 | B102: 3000 | C102: 94.5 | D102: 60 | E102: 400 | F102: 2600
A103: 3500 | B103: 3250 | C103: 102.375 | D103: 60 | E103: 400 | F103: 2850
A104: 3500 | B104: 3500 | C104: 110.25 | D104: 60 | E104: 400 | F104: 3100
A105: 3500 | B105: 3750 | C105: 118.125 | D105: 60 | E105: 400 | F105: 3350
A106: 3500 | B106: 4000 | C106: 126 | D106: 60 | E106: 400 | F106: 3600
A107: 3500 | B107: 4250 | C107: 133.875 | D107: 60 | E107: 400 | F107: 3850
A108: 3500 | B108: 4500 | C108: 141.75 | D108: 76 | E108: 450 | F108: 4050
A109: 3500 | B109: 4750 | C109: 149.625 | D109: 76 | E109: 500 | F109: 4250
A110: 3500 | B110: 5000 | C110: 157.5 | D110: 76 | E110: 500 | F110: 4500
A111: 3750 | B111: 2250 | C111: 75.9375 | D111: 60 | E111: 400 | F111: 1850
A112: 3750 | B112: 2500 | C112: 84.375 | D112: 60 | E112: 400 | F112: 2100
A113: 3750 | B113: 2750 | C113: 92.8125 | D113: 60 | E113: 400 | F113: 2350
A114: 3750 | B114: 3000 | C114: 101.25 | D114: 60 | E114: 400 | F114: 2600
A115: 3750 | B115: 3250 | C115: 109.6875 | D115: 60 | E115: 400 | F115: 2850
A116: 3750 | B116: 3500 | C116: 118.125 | D116: 60 | E116: 400 | F116: 3100
A117: 3750 | B117: 3750 | C117: 126.5625 | D117: 60 | E117: 400 | F117: 3350
A118: 3750 | B118: 4000 | C118: 135 | D118: 60 | E118: 400 | F118: 3600
A119: 3750 | B119: 4250 | C119: 143.4375 | D119: 60 | E119: 400 | F119: 3850
A120: 3750 | B120: 4500 | C120: 151.875 | D120: 76 | E120: 450 | F120: 4050
A121: 3750 | B121: 4750 | C121: 160.3125 | D121: 76 | E121: 500 | F121: 4250
A122: 3750 | B122: 5000 | C122: 168.75 | D122: 76 | E122: 500 | F122: 4500
A123: 4000 | B123: 2250 | C123: 81 | D123: 60 | E123: 400 | F123: 1850
A124: 4000 | B124: 2500 | C124: 90 | D124: 60 | E124: 400 | F124: 2100
A125: 4000 | B125: 2750 | C125: 99 | D125: 60 | E125: 400 | F125: 2350
A126: 4000 | B126: 3000 | C126: 108 | D126: 60 | E126: 400 | F126: 2600
A127: 4000 | B127: 3250 | C127: 117 | D127: 60 | E127: 400 | F127: 2850
A128: 4000 | B128: 3500 | C128: 126 | D128: 60 | E128: 400 | F128: 3100
A129: 4000 | B129: 3750 | C129: 135 | D129: 60 | E129: 400 | F129: 3350
A130: 4000 | B130: 4000 | C130: 144 | D130: 60 | E130: 400 | F130: 3600
A131: 4000 | B131: 4250 | C131: =A131*B131*9/1000000 -> 153 | D131: 60 | E131: 400 | F131: =B131-E131 -> 3850
A132: 4000 | B132: 4500 | C132: 162 | D132: 76 | E132: 450 | F132: 4050
A133: 4000 | B133: 4750 | C133: 171 | D133: 76 | E133: 500 | F133: 4250
A134: 4000 | B134: 5000 | C134: 180 | D134: 76 | E134: 500 | F134: 4500
A135: 4250 | B135: 2250 | C135: 86.0625 | D135: 60 | E135: 400 | F135: 1850
A136: 4250 | B136: 2500 | C136: 95.625 | D136: 60 | E136: 400 | F136: 2100
A137: 4250 | B137: 2750 | C137: 105.1875 | D137: 60 | E137: 400 | F137: 2350
A138: 4250 | B138: 3000 | C138: 114.75 | D138: 60 | E138: 400 | F138: 2600
A139: 4250 | B139: 3250 | C139: 124.3125 | D139: 60 | E139: 400 | F139: 2850
A140: 4250 | B140: 3500 | C140: 133.875 | D140: 60 | E140: 400 | F140: 3100
A141: 4250 | B141: 3750 | C141: 143.4375 | D141: 60 | E141: 400 | F141: 3350
A142: 4250 | B142: 4000 | C142: 153 | D142: 60 | E142: 400 | F142: 3600
A143: 4250 | B143: 4250 | C143: 162.5625 | D143: 76 | E143: 450 | F143: 3800
A144: 4250 | B144: 4500 | C144: 172.125 | D144: 76 | E144: 450 | F144: 4050
A145: 4250 | B145: 4750 | C145: 181.6875 | D145: 76 | E145: 500 | F145: 4250
A146: 4250 | B146: 5000 | C146: 191.25 | D146: 76 | E146: 500 | F146: 4500
A147: 4500 | B147: 2250 | C147: 91.125 | D147: 60 | E147: 400 | F147: 1850
A148: 4500 | B148: 2500 | C148: 101.25 | D148: 60 | E148: 400 | F148: 2100
A149: 4500 | B149: 2750 | C149: 111.375 | D149: 60 | E149: 400 | F149: 2350
A150: 4500 | B150: 3000 | C150: 121.5 | D150: 60 | E150: 400 | F150: 2600
A151: 4500 | B151: 3250 | C151: 131.625 | D151: 60 | E151: 400 | F151: 2850
A152: 4500 | B152: 3500 | C152: 141.75 | D152: 76 | E152: 400 | F152: 3100
A153: 4500 | B153: 3750 | C153: 151.875 | D153: 76 | E153: 400 | F153: 3350
A154: 4500 | B154: 4000 | C154: 162 | D154: 76 | E154: 400 | F154: 3600
A155: 4500 | B155: 4250 | C155: 172.125 | D155: 76 | E155: 450 | F155: 3800
A156: 4500 | B156: 4500 | C156: 182.25 | D156: 76 | E156: 450 | F156: 4050
A157: 4500 | B157: 4750 | C157: 192.375 | D157: 76 | E157: 500 | F157: 4250
A158: 4500 | B158: 5000 | C158: 202.5 | D158: 76 | E158: 500 | F158: 4500
A159: 4750 | B159: 2250 | C159: 96.1875 | D159: 60 | E159: 400 | F159: 1850
A160: 4750 | B160: 2500 | C160: 106.875 | D160: 60 | E160: 400 | F160: 2100
A161: 4750 | B161: 2750 | C161: 117.5625 | D161: 60 | E161: 400 | F161: 2350
A162: 4750 | B162: 3000 | C162: 128.25 | D162: 60 | E162: 400 | F162: 2600
A163: 4750 | B163: 3250 | C163: 138.9375 | D163: 76 | E163: 400 | F163: 2850
A164: 4750 | B164: 3500 | C164: 149.625 | D164: 76 | E164: 400 | F164: 3100
A165: 4750 | B165: 3750 | C165: 160.3125 | D165: 76 | E165: 400 | F165: 3350
A166: 4750 | B166: 4000 | C166: 171 | D166: 76 | E166: 400 | F166: 3600
A167: 4750 | B167: 4250 | C167: 181.6875 | D167: 76 | E167: 450 | F167: 3800
A168: 4750 | B168: 4500 | C168: 192.375 | D168: 76 | E168: 450 | F168: 4050
A169: 4750 | B169: 4750 | C169: 203.0625 | D169: 76 | E169: 500 | F169: 4250
A170: 4750 | B170: 5000 | C170: 213.75 | D170: 76 | E170: 500 | F170: 4500
A171: 5000 | B171: 2250 | C171: 101.25 | D171: 60 | E171: 400 | F171: 1850
A172: 5000 | B172: 2500 | C172: 112.5 | D172: 76 | E172: 400 | F172: 2100
A173: 5000 | B173: 2750 | C173: 123.75 | D173: 76 | E173: 400 | F173: 2350
A174: 5000 | B174: 3000 | C174: 135 | D174: 76 | E174: 400 | F174: 2600
A175: 5000 | B175: 3250 | C175: 146.25 | D175: 76 | E175: 400 | F175: 2850
A176: 5000 | B176: 3500 | C176: 157.5 | D176: 76 | E176: 400 | F176: 3100
A177: 5000 | B177: 3750 | C177: 168.75 | D177: 76 | E177: 400 | F177: 3350
A178: 5000 | B178: 4000 | C178: 180 | D178: 76 | E178: 400 | F178: 3600
A179: 5000 | B179: 4250 | C179: 191.25 | D179: 76 | E179: 450 | F179: 3800
A180: 5000 | B180: 4500 | C180: 202.5 | D180: 76 | E180: 450 | F180: 4050
A181: 5000 | B181: 4750 | C181: 213.75 | D181: 76 | E181: 500 | F181: 4250
A182: 5000 | B182: 5000 | C182: 225 | D182: 76 | E182: 500 | F182: 4500
A183: 5250 | B183: 2250 | C183: 106.3125 | D183: 76 | E183: 400 | F183: 1850
A184: 5250 | B184: 2500 | C184: 118.125 | D184: 76 | E184: 400 | F184: 2100
A185: 5250 | B185: 2750 | C185: 129.9375 | D185: 76 | E185: 400 | F185: 2350
A186: 5250 | B186: 3000 | C186: 141.75 | D186: 76 | E186: 400 | F186: 2600
A187: 5250 | B187: 3250 | C187: 153.5625 | D187: 76 | E187: 400 | F187: 2850
A188: 5250 | B188: 3500 | C188: 165.375 | D188: 76 | E188: 400 | F188: 3100
A189: 5250 | B189: 3750 | C189: 177.1875 | D189: 76 | E189: 400 | F189: 3350
A190: 5250 | B190: 4000 | C190: 189 | D190: 76 | E190: 400 | F190: 3600
A191: 5250 | B191: 4250 | C191: 200.8125 | D191: 76 | E191: 450 | F191: 3800
A192: 5250 | B192: 4500 | C192: 212.625 | D192: 76 | E192: 450 | F192: 4050
A193: 5250 | B193: 4750 | C193: 224.4375 | D193: 76 | E193: 500 | F193: 4250
A194: 5250 | B194: 5000 | C194: 236.25 | D194: 102 | E194: 500 | F194: 4500
A195: 5500 | B195: 2250 | C195: =A195*B195*9/1000000 -> 111.375 | D195: 60 | E195: 400 | F195: =B195-E195 -> 1850
A196: 5500 | B196: 2500 | C196: 123.75 | D196: 76 | E196: 400 | F196: 2100
A197: 5500 | B197: 2750 | C197: 136.125 | D197: 76 | E197: 400 | F197: 2350
A198: 5500 | B198: 3000 | C198: 148.5 | D198: 76 | E198: 400 | F198: 2600
A199: 5500 | B199: 3250 | C199: 160.875 | D199: 76 | E199: 400 | F199: 2850
A200: 5500 | B200: 3500 | C200: 173.25 | D200: 76 | E200: 400 | F200: 3100
A201: 5500 | B201: 3750 | C201: 185.625 | D201: 76 | E201: 400 | F201: 3350
... 149 more rows

Sheet Valencia P60 (hidden)
A2: Šířka celková "A" [mm]: | B2: výška celková [mm]: | C2: hmotnost | D2: hřídel | E2: bočnice mm | F2: výška "B" mm
A3: 1500 | B3: 2250 | C3: =A3*B3*10.5/1000000 -> 35.4375 | D3: 48 | E3: 400 | F3: =B3-E3 -> 1850
A4: 1500 | B4: 2500 | C4: 39.375 | D4: 48 | E4: 400 | F4: 2100
A5: 1500 | B5: 2750 | C5: 43.3125 | D5: 48 | E5: 400 | F5: 2350
A6: 1500 | B6: 3000 | C6: 47.25 | D6: 48 | E6: 400 | F6: 2600
A7: 1500 | B7: 3250 | C7: 51.1875 | D7: 48 | E7: 400 | F7: 2850
A8: 1500 | B8: 3500 | C8: 55.125 | D8: 48 | E8: 400 | F8: 3100
A9: 1500 | B9: 3750 | C9: 59.0625 | D9: 48 | E9: 400 | F9: 3350
A10: 1500 | B10: 4000 | C10: 63 | D10: 48 | E10: 400 | F10: 3600
A11: 1500 | B11: 4250 | C11: 66.9375 | D11: 48 | E11: 400 | F11: 3850
A12: 1500 | B12: 4500 | C12: 70.875 | D12: 76 | E12: 450 | F12: 4050
A13: 1500 | B13: 4750 | C13: 74.8125 | D13: 76 | E13: 500 | F13: 4250
A14: 1500 | B14: 5000 | C14: 78.75 | D14: 76 | E14: 500 | F14: 4500
A15: 1750 | B15: 2250 | C15: 41.34375 | D15: 48 | E15: 400 | F15: 1850
A16: 1750 | B16: 2500 | C16: 45.9375 | D16: 48 | E16: 400 | F16: 2100
A17: 1750 | B17: 2750 | C17: 50.53125 | D17: 48 | E17: 400 | F17: 2350
A18: 1750 | B18: 3000 | C18: 55.125 | D18: 48 | E18: 400 | F18: 2600
A19: 1750 | B19: 3250 | C19: 59.71875 | D19: 48 | E19: 400 | F19: 2850
A20: 1750 | B20: 3500 | C20: 64.3125 | D20: 48 | E20: 400 | F20: 3100
A21: 1750 | B21: 3750 | C21: 68.90625 | D21: 48 | E21: 400 | F21: 3350
A22: 1750 | B22: 4000 | C22: 73.5 | D22: 48 | E22: 400 | F22: 3600
A23: 1750 | B23: 4250 | C23: 78.09375 | D23: 48 | E23: 400 | F23: 3850
A24: 1750 | B24: 4500 | C24: 82.6875 | D24: 76 | E24: 450 | F24: 4050
A25: 1750 | B25: 4750 | C25: 87.28125 | D25: 76 | E25: 500 | F25: 4250
A26: 1750 | B26: 5000 | C26: 91.875 | D26: 76 | E26: 500 | F26: 4500
A27: 2000 | B27: 2250 | C27: 47.25 | D27: 48 | E27: 400 | F27: 1850
A28: 2000 | B28: 2500 | C28: 52.5 | D28: 48 | E28: 400 | F28: 2100
A29: 2000 | B29: 2750 | C29: 57.75 | D29: 48 | E29: 400 | F29: 2350
A30: 2000 | B30: 3000 | C30: 63 | D30: 48 | E30: 400 | F30: 2600
A31: 2000 | B31: 3250 | C31: 68.25 | D31: 48 | E31: 400 | F31: 2850
A32: 2000 | B32: 3500 | C32: 73.5 | D32: 48 | E32: 400 | F32: 3100
A33: 2000 | B33: 3750 | C33: 78.75 | D33: 48 | E33: 400 | F33: 3350
A34: 2000 | B34: 4000 | C34: 84 | D34: 48 | E34: 400 | F34: 3600
A35: 2000 | B35: 4250 | C35: 89.25 | D35: 48 | E35: 400 | F35: 3850
A36: 2000 | B36: 4500 | C36: 94.5 | D36: 76 | E36: 450 | F36: 4050
A37: 2000 | B37: 4750 | C37: 99.75 | D37: 76 | E37: 500 | F37: 4250
A38: 2000 | B38: 5000 | C38: 105 | D38: 76 | E38: 500 | F38: 4500
A39: 2250 | B39: 2250 | C39: 53.15625 | D39: 48 | E39: 400 | F39: 1850
A40: 2250 | B40: 2500 | C40: 59.0625 | D40: 48 | E40: 400 | F40: 2100
A41: 2250 | B41: 2750 | C41: 64.96875 | D41: 48 | E41: 400 | F41: 2350
A42: 2250 | B42: 3000 | C42: 70.875 | D42: 48 | E42: 400 | F42: 2600
A43: 2250 | B43: 3250 | C43: 76.78125 | D43: 48 | E43: 400 | F43: 2850
A44: 2250 | B44: 3500 | C44: 82.6875 | D44: 48 | E44: 400 | F44: 3100
A45: 2250 | B45: 3750 | C45: 88.59375 | D45: 48 | E45: 400 | F45: 3350
A46: 2250 | B46: 4000 | C46: 94.5 | D46: 48 | E46: 400 | F46: 3600
A47: 2250 | B47: 4250 | C47: 100.40625 | D47: 48 | E47: 400 | F47: 3850
A48: 2250 | B48: 4500 | C48: 106.3125 | D48: 76 | E48: 450 | F48: 4050
A49: 2250 | B49: 4750 | C49: 112.21875 | D49: 76 | E49: 500 | F49: 4250
A50: 2250 | B50: 5000 | C50: 118.125 | D50: 76 | E50: 500 | F50: 4500
A51: 2500 | B51: 2250 | C51: 59.0625 | D51: 48 | E51: 400 | F51: 1850
A52: 2500 | B52: 2500 | C52: 65.625 | D52: 48 | E52: 400 | F52: 2100
A53: 2500 | B53: 2750 | C53: 72.1875 | D53: 48 | E53: 400 | F53: 2350
A54: 2500 | B54: 3000 | C54: 78.75 | D54: 48 | E54: 400 | F54: 2600
A55: 2500 | B55: 3250 | C55: 85.3125 | D55: 48 | E55: 400 | F55: 2850
A56: 2500 | B56: 3500 | C56: 91.875 | D56: 48 | E56: 400 | F56: 3100
A57: 2500 | B57: 3750 | C57: 98.4375 | D57: 48 | E57: 400 | F57: 3350
A58: 2500 | B58: 4000 | C58: 105 | D58: 48 | E58: 400 | F58: 3600
A59: 2500 | B59: 4250 | C59: 111.5625 | D59: 48 | E59: 400 | F59: 3850
A60: 2500 | B60: 4500 | C60: 118.125 | D60: 76 | E60: 450 | F60: 4050
A61: 2500 | B61: 4750 | C61: 124.6875 | D61: 76 | E61: 500 | F61: 4250
A62: 2500 | B62: 5000 | C62: 131.25 | D62: 76 | E62: 500 | F62: 4500
A63: 2750 | B63: 2250 | C63: 64.96875 | D63: 48 | E63: 400 | F63: 1850
A64: 2750 | B64: 2500 | C64: 72.1875 | D64: 48 | E64: 400 | F64: 2100
A65: 2750 | B65: 2750 | C65: 79.40625 | D65: 48 | E65: 400 | F65: 2350
A66: 2750 | B66: 3000 | C66: 86.625 | D66: 48 | E66: 400 | F66: 2600
A67: 2750 | B67: 3250 | C67: =A67*B67*10.5/1000000 -> 93.84375 | D67: 48 | E67: 400 | F67: =B67-E67 -> 2850
A68: 2750 | B68: 3500 | C68: 101.0625 | D68: 48 | E68: 400 | F68: 3100
A69: 2750 | B69: 3750 | C69: 108.28125 | D69: 48 | E69: 400 | F69: 3350
A70: 2750 | B70: 4000 | C70: 115.5 | D70: 48 | E70: 400 | F70: 3600
A71: 2750 | B71: 4250 | C71: 122.71875 | D71: 48 | E71: 400 | F71: 3850
A72: 2750 | B72: 4500 | C72: 129.9375 | D72: 76 | E72: 450 | F72: 4050
A73: 2750 | B73: 4750 | C73: 137.15625 | D73: 76 | E73: 500 | F73: 4250
A74: 2750 | B74: 5000 | C74: 144.375 | D74: 76 | E74: 500 | F74: 4500
A75: 3000 | B75: 2250 | C75: 70.875 | D75: 48 | E75: 400 | F75: 1850
A76: 3000 | B76: 2500 | C76: 78.75 | D76: 48 | E76: 400 | F76: 2100
A77: 3000 | B77: 2750 | C77: 86.625 | D77: 48 | E77: 400 | F77: 2350
A78: 3000 | B78: 3000 | C78: 94.5 | D78: 48 | E78: 400 | F78: 2600
A79: 3000 | B79: 3250 | C79: 102.375 | D79: 48 | E79: 400 | F79: 2850
A80: 3000 | B80: 3500 | C80: 110.25 | D80: 60 | E80: 400 | F80: 3100
A81: 3000 | B81: 3750 | C81: 118.125 | D81: 60 | E81: 400 | F81: 3350
A82: 3000 | B82: 4000 | C82: 126 | D82: 60 | E82: 400 | F82: 3600
A83: 3000 | B83: 4250 | C83: 133.875 | D83: 60 | E83: 400 | F83: 3850
A84: 3000 | B84: 4500 | C84: 141.75 | D84: 76 | E84: 450 | F84: 4050
A85: 3000 | B85: 4750 | C85: 149.625 | D85: 76 | E85: 500 | F85: 4250
A86: 3000 | B86: 5000 | C86: 157.5 | D86: 76 | E86: 500 | F86: 4500
A87: 3250 | B87: 2250 | C87: 76.78125 | D87: 48 | E87: 400 | F87: 1850
A88: 3250 | B88: 2500 | C88: 85.3125 | D88: 48 | E88: 400 | F88: 2100
A89: 3250 | B89: 2750 | C89: 93.84375 | D89: 48 | E89: 400 | F89: 2350
A90: 3250 | B90: 3000 | C90: 102.375 | D90: 60 | E90: 400 | F90: 2600
A91: 3250 | B91: 3250 | C91: 110.90625 | D91: 60 | E91: 400 | F91: 2850
A92: 3250 | B92: 3500 | C92: 119.4375 | D92: 60 | E92: 400 | F92: 3100
A93: 3250 | B93: 3750 | C93: 127.96875 | D93: 60 | E93: 400 | F93: 3350
A94: 3250 | B94: 4000 | C94: 136.5 | D94: 60 | E94: 400 | F94: 3600
A95: 3250 | B95: 4250 | C95: 145.03125 | D95: 60 | E95: 400 | F95: 3850
A96: 3250 | B96: 4500 | C96: 153.5625 | D96: 76 | E96: 450 | F96: 4050
A97: 3250 | B97: 4750 | C97: 162.09375 | D97: 76 | E97: 500 | F97: 4250
A98: 3250 | B98: 5000 | C98: 170.625 | D98: 76 | E98: 500 | F98: 4500
A99: 3500 | B99: 2250 | C99: 82.6875 | D99: 60 | E99: 400 | F99: 1850
A100: 3500 | B100: 2500 | C100: 91.875 | D100: 60 | E100: 400 | F100: 2100
A101: 3500 | B101: 2750 | C101: 101.0625 | D101: 60 | E101: 400 | F101: 2350
A102: 3500 | B102: 3000 | C102: 110.25 | D102: 60 | E102: 400 | F102: 2600
A103: 3500 | B103: 3250 | C103: 119.4375 | D103: 60 | E103: 400 | F103: 2850
A104: 3500 | B104: 3500 | C104: 128.625 | D104: 60 | E104: 400 | F104: 3100
A105: 3500 | B105: 3750 | C105: 137.8125 | D105: 60 | E105: 400 | F105: 3350
A106: 3500 | B106: 4000 | C106: 147 | D106: 60 | E106: 400 | F106: 3600
A107: 3500 | B107: 4250 | C107: 156.1875 | D107: 60 | E107: 400 | F107: 3850
A108: 3500 | B108: 4500 | C108: 165.375 | D108: 76 | E108: 450 | F108: 4050
A109: 3500 | B109: 4750 | C109: 174.5625 | D109: 76 | E109: 500 | F109: 4250
A110: 3500 | B110: 5000 | C110: 183.75 | D110: 76 | E110: 500 | F110: 4500
A111: 3750 | B111: 2250 | C111: 88.59375 | D111: 60 | E111: 400 | F111: 1850
A112: 3750 | B112: 2500 | C112: 98.4375 | D112: 60 | E112: 400 | F112: 2100
A113: 3750 | B113: 2750 | C113: 108.28125 | D113: 60 | E113: 400 | F113: 2350
A114: 3750 | B114: 3000 | C114: 118.125 | D114: 60 | E114: 400 | F114: 2600
A115: 3750 | B115: 3250 | C115: 127.96875 | D115: 60 | E115: 400 | F115: 2850
A116: 3750 | B116: 3500 | C116: 137.8125 | D116: 60 | E116: 400 | F116: 3100
A117: 3750 | B117: 3750 | C117: 147.65625 | D117: 60 | E117: 400 | F117: 3350
A118: 3750 | B118: 4000 | C118: 157.5 | D118: 60 | E118: 400 | F118: 3600
A119: 3750 | B119: 4250 | C119: 167.34375 | D119: 60 | E119: 400 | F119: 3850
A120: 3750 | B120: 4500 | C120: 177.1875 | D120: 76 | E120: 450 | F120: 4050
A121: 3750 | B121: 4750 | C121: 187.03125 | D121: 76 | E121: 500 | F121: 4250
A122: 3750 | B122: 5000 | C122: 196.875 | D122: 76 | E122: 500 | F122: 4500
A123: 4000 | B123: 2250 | C123: 94.5 | D123: 60 | E123: 400 | F123: 1850
A124: 4000 | B124: 2500 | C124: 105 | D124: 60 | E124: 400 | F124: 2100
A125: 4000 | B125: 2750 | C125: 115.5 | D125: 60 | E125: 400 | F125: 2350
A126: 4000 | B126: 3000 | C126: 126 | D126: 60 | E126: 400 | F126: 2600
A127: 4000 | B127: 3250 | C127: 136.5 | D127: 60 | E127: 400 | F127: 2850
A128: 4000 | B128: 3500 | C128: 147 | D128: 60 | E128: 400 | F128: 3100
A129: 4000 | B129: 3750 | C129: 157.5 | D129: 60 | E129: 400 | F129: 3350
A130: 4000 | B130: 4000 | C130: 168 | D130: 60 | E130: 400 | F130: 3600
A131: 4000 | B131: 4250 | C131: =A131*B131*10.5/1000000 -> 178.5 | D131: 76 | E131: 450 | F131: =B131-E131 -> 3800
A132: 4000 | B132: 4500 | C132: 189 | D132: 76 | E132: 450 | F132: 4050
A133: 4000 | B133: 4750 | C133: 199.5 | D133: 76 | E133: 500 | F133: 4250
A134: 4000 | B134: 5000 | C134: 210 | D134: 76 | E134: 500 | F134: 4500
A135: 4250 | B135: 2250 | C135: 100.40625 | D135: 60 | E135: 400 | F135: 1850
A136: 4250 | B136: 2500 | C136: 111.5625 | D136: 60 | E136: 400 | F136: 2100
A137: 4250 | B137: 2750 | C137: 122.71875 | D137: 60 | E137: 400 | F137: 2350
A138: 4250 | B138: 3000 | C138: 133.875 | D138: 60 | E138: 400 | F138: 2600
A139: 4250 | B139: 3250 | C139: 145.03125 | D139: 60 | E139: 400 | F139: 2850
A140: 4250 | B140: 3500 | C140: 156.1875 | D140: 60 | E140: 400 | F140: 3100
A141: 4250 | B141: 3750 | C141: 167.34375 | D141: 76 | E141: 400 | F141: 3350
A142: 4250 | B142: 4000 | C142: 178.5 | D142: 76 | E142: 400 | F142: 3600
A143: 4250 | B143: 4250 | C143: 189.65625 | D143: 76 | E143: 450 | F143: 3800
A144: 4250 | B144: 4500 | C144: 200.8125 | D144: 76 | E144: 450 | F144: 4050
A145: 4250 | B145: 4750 | C145: 211.96875 | D145: 76 | E145: 500 | F145: 4250
A146: 4250 | B146: 5000 | C146: 223.125 | D146: 76 | E146: 500 | F146: 4500
A147: 4500 | B147: 2250 | C147: 106.3125 | D147: 60 | E147: 400 | F147: 1850
A148: 4500 | B148: 2500 | C148: 118.125 | D148: 60 | E148: 400 | F148: 2100
A149: 4500 | B149: 2750 | C149: 129.9375 | D149: 60 | E149: 400 | F149: 2350
A150: 4500 | B150: 3000 | C150: 141.75 | D150: 76 | E150: 400 | F150: 2600
A151: 4500 | B151: 3250 | C151: 153.5625 | D151: 76 | E151: 400 | F151: 2850
A152: 4500 | B152: 3500 | C152: 165.375 | D152: 76 | E152: 400 | F152: 3100
A153: 4500 | B153: 3750 | C153: 177.1875 | D153: 76 | E153: 400 | F153: 3350
A154: 4500 | B154: 4000 | C154: 189 | D154: 76 | E154: 400 | F154: 3600
A155: 4500 | B155: 4250 | C155: 200.8125 | D155: 76 | E155: 450 | F155: 3800
A156: 4500 | B156: 4500 | C156: 212.625 | D156: 76 | E156: 450 | F156: 4050
A157: 4500 | B157: 4750 | C157: 224.4375 | D157: 76 | E157: 500 | F157: 4250
A158: 4500 | B158: 5000 | C158: 236.25 | D158: 76 | E158: 500 | F158: 4500
A159: 4750 | B159: 2250 | C159: 112.21875 | D159: 60 | E159: 400 | F159: 1850
A160: 4750 | B160: 2500 | C160: 124.6875 | D160: 60 | E160: 400 | F160: 2100
A161: 4750 | B161: 2750 | C161: 137.15625 | D161: 76 | E161: 400 | F161: 2350
A162: 4750 | B162: 3000 | C162: 149.625 | D162: 76 | E162: 400 | F162: 2600
A163: 4750 | B163: 3250 | C163: 162.09375 | D163: 76 | E163: 400 | F163: 2850
A164: 4750 | B164: 3500 | C164: 174.5625 | D164: 76 | E164: 400 | F164: 3100
A165: 4750 | B165: 3750 | C165: 187.03125 | D165: 76 | E165: 400 | F165: 3350
A166: 4750 | B166: 4000 | C166: 199.5 | D166: 76 | E166: 400 | F166: 3600
A167: 4750 | B167: 4250 | C167: 211.96875 | D167: 76 | E167: 450 | F167: 3800
A168: 4750 | B168: 4500 | C168: 224.4375 | D168: 76 | E168: 450 | F168: 4050
A169: 4750 | B169: 4750 | C169: 236.90625 | D169: 76 | E169: 500 | F169: 4250
A170: 4750 | B170: 5000 | C170: 249.375 | D170: 76 | E170: 500 | F170: 4500
A171: 5000 | B171: 2250 | C171: 118.125 | D171: 76 | E171: 400 | F171: 1850
A172: 5000 | B172: 2500 | C172: 131.25 | D172: 76 | E172: 400 | F172: 2100
A173: 5000 | B173: 2750 | C173: 144.375 | D173: 76 | E173: 400 | F173: 2350
A174: 5000 | B174: 3000 | C174: 157.5 | D174: 76 | E174: 400 | F174: 2600
A175: 5000 | B175: 3250 | C175: 170.625 | D175: 76 | E175: 400 | F175: 2850
A176: 5000 | B176: 3500 | C176: 183.75 | D176: 76 | E176: 400 | F176: 3100
A177: 5000 | B177: 3750 | C177: 196.875 | D177: 76 | E177: 400 | F177: 3350
A178: 5000 | B178: 4000 | C178: 210 | D178: 76 | E178: 400 | F178: 3600
A179: 5000 | B179: 4250 | C179: 223.125 | D179: 76 | E179: 450 | F179: 3800
A180: 5000 | B180: 4500 | C180: 236.25 | D180: 76 | E180: 450 | F180: 4050
A181: 5000 | B181: 4750 | C181: 249.375 | D181: 76 | E181: 500 | F181: 4250
A182: 5000 | B182: 5000 | C182: 262.5 | D182: 102 | E182: 500 | F182: 4500
A183: 5250 | B183: 2250 | C183: 124.03125 | D183: 76 | E183: 400 | F183: 1850
A184: 5250 | B184: 2500 | C184: 137.8125 | D184: 76 | E184: 400 | F184: 2100
A185: 5250 | B185: 2750 | C185: 151.59375 | D185: 76 | E185: 400 | F185: 2350
A186: 5250 | B186: 3000 | C186: 165.375 | D186: 76 | E186: 400 | F186: 2600
A187: 5250 | B187: 3250 | C187: 179.15625 | D187: 76 | E187: 400 | F187: 2850
A188: 5250 | B188: 3500 | C188: 192.9375 | D188: 76 | E188: 400 | F188: 3100
A189: 5250 | B189: 3750 | C189: 206.71875 | D189: 76 | E189: 400 | F189: 3350
A190: 5250 | B190: 4000 | C190: 220.5 | D190: 76 | E190: 400 | F190: 3600
A191: 5250 | B191: 4050 | C191: 223.25625 | D191: 102 | E191: 450 | F191: 3600
A192: 5250 | B192: 4500 | C192: 248.0625 | D192: 102 | E192: 500 | F192: 4000
A193: 5250 | B193: 4750 | C193: 261.84375 | D193: 102 | E193: 500 | F193: 4250
A194: 5250 | B194: 5000 | C194: 275.625 | D194: 102 | E194: 500 | F194: 4500
A195: 5500 | B195: 2250 | C195: =A195*B195*10.5/1000000 -> 129.9375 | D195: 76 | E195: 400 | F195: =B195-E195 -> 1850
A196: 5500 | B196: 2500 | C196: 144.375 | D196: 76 | E196: 400 | F196: 2100
A197: 5500 | B197: 2750 | C197: 158.8125 | D197: 76 | E197: 400 | F197: 2350
A198: 5500 | B198: 3000 | C198: 173.25 | D198: 76 | E198: 400 | F198: 2600
A199: 5500 | B199: 3250 | C199: 187.6875 | D199: 76 | E199: 400 | F199: 2850
A200: 5500 | B200: 3500 | C200: 202.125 | D200: 76 | E200: 400 | F200: 3100
A201: 5500 | B201: 3750 | C201: 216.5625 | D201: 102 | E201: 450 | F201: 3300
... 149 more rows

Sheet Monako (hidden)
A2: Šířka celková "A" [mm]: | B2: výška celková [mm]: | C2: hmotnost | D2: hřídel | E2: bočnice mm | F2: výška "B" mm
A3: 1500 | B3: 2250 | C3: =A3*B3*10/1000000 -> 33.75 | D3: 48 | E3: 400 | F3: =B3-E3 -> 1850
A4: 1500 | B4: 2500 | C4: 37.5 | D4: 48 | E4: 400 | F4: 2100
A5: 1500 | B5: 2750 | C5: 41.25 | D5: 48 | E5: 400 | F5: 2350
A6: 1500 | B6: 3000 | C6: 45 | D6: 48 | E6: 400 | F6: 2600
A7: 1500 | B7: 3250 | C7: 48.75 | D7: 48 | E7: 400 | F7: 2850
A8: 1500 | B8: 3500 | C8: 52.5 | D8: 48 | E8: 400 | F8: 3100
A9: 1500 | B9: 3750 | C9: 56.25 | D9: 48 | E9: 400 | F9: 3350
A10: 1500 | B10: 4000 | C10: 60 | D10: 48 | E10: 400 | F10: 3600
A11: 1500 | B11: 4250 | C11: 63.75 | D11: 48 | E11: 400 | F11: 3850
A12: 1500 | B12: 4500 | C12: 67.5 | D12: 76 | E12: 450 | F12: 4050
A13: 1500 | B13: 4750 | C13: 71.25 | D13: 76 | E13: 500 | F13: 4250
A14: 1500 | B14: 5000 | C14: 75 | D14: 76 | E14: 500 | F14: 4500
A15: 1750 | B15: 2250 | C15: 39.375 | D15: 48 | E15: 400 | F15: 1850
A16: 1750 | B16: 2500 | C16: 43.75 | D16: 48 | E16: 400 | F16: 2100
A17: 1750 | B17: 2750 | C17: 48.125 | D17: 48 | E17: 400 | F17: 2350
A18: 1750 | B18: 3000 | C18: 52.5 | D18: 48 | E18: 400 | F18: 2600
A19: 1750 | B19: 3250 | C19: 56.875 | D19: 48 | E19: 400 | F19: 2850
A20: 1750 | B20: 3500 | C20: 61.25 | D20: 48 | E20: 400 | F20: 3100
A21: 1750 | B21: 3750 | C21: 65.625 | D21: 48 | E21: 400 | F21: 3350
A22: 1750 | B22: 4000 | C22: 70 | D22: 48 | E22: 400 | F22: 3600
A23: 1750 | B23: 4250 | C23: 74.375 | D23: 48 | E23: 400 | F23: 3850
A24: 1750 | B24: 4500 | C24: 78.75 | D24: 76 | E24: 450 | F24: 4050
A25: 1750 | B25: 4750 | C25: 83.125 | D25: 76 | E25: 500 | F25: 4250
A26: 1750 | B26: 5000 | C26: 87.5 | D26: 76 | E26: 500 | F26: 4500
A27: 2000 | B27: 2250 | C27: 45 | D27: 48 | E27: 400 | F27: 1850
A28: 2000 | B28: 2500 | C28: 50 | D28: 48 | E28: 400 | F28: 2100
A29: 2000 | B29: 2750 | C29: 55 | D29: 48 | E29: 400 | F29: 2350
A30: 2000 | B30: 3000 | C30: 60 | D30: 48 | E30: 400 | F30: 2600
A31: 2000 | B31: 3250 | C31: 65 | D31: 48 | E31: 400 | F31: 2850
A32: 2000 | B32: 3500 | C32: 70 | D32: 48 | E32: 400 | F32: 3100
A33: 2000 | B33: 3750 | C33: 75 | D33: 48 | E33: 400 | F33: 3350
A34: 2000 | B34: 4000 | C34: 80 | D34: 48 | E34: 400 | F34: 3600
A35: 2000 | B35: 4250 | C35: 85 | D35: 48 | E35: 400 | F35: 3850
A36: 2000 | B36: 4500 | C36: 90 | D36: 76 | E36: 450 | F36: 4050
A37: 2000 | B37: 4750 | C37: 95 | D37: 76 | E37: 500 | F37: 4250
A38: 2000 | B38: 5000 | C38: 100 | D38: 76 | E38: 500 | F38: 4500
A39: 2250 | B39: 2250 | C39: 50.625 | D39: 48 | E39: 400 | F39: 1850
A40: 2250 | B40: 2500 | C40: 56.25 | D40: 48 | E40: 400 | F40: 2100
A41: 2250 | B41: 2750 | C41: 61.875 | D41: 48 | E41: 400 | F41: 2350
A42: 2250 | B42: 3000 | C42: 67.5 | D42: 48 | E42: 400 | F42: 2600
A43: 2250 | B43: 3250 | C43: 73.125 | D43: 48 | E43: 400 | F43: 2850
A44: 2250 | B44: 3500 | C44: 78.75 | D44: 48 | E44: 400 | F44: 3100
A45: 2250 | B45: 3750 | C45: 84.375 | D45: 48 | E45: 400 | F45: 3350
A46: 2250 | B46: 4000 | C46: 90 | D46: 48 | E46: 400 | F46: 3600
A47: 2250 | B47: 4250 | C47: 95.625 | D47: 48 | E47: 400 | F47: 3850
A48: 2250 | B48: 4500 | C48: 101.25 | D48: 76 | E48: 450 | F48: 4050
A49: 2250 | B49: 4750 | C49: 106.875 | D49: 76 | E49: 500 | F49: 4250
A50: 2250 | B50: 5000 | C50: 112.5 | D50: 76 | E50: 500 | F50: 4500
A51: 2500 | B51: 2250 | C51: 56.25 | D51: 48 | E51: 400 | F51: 1850
A52: 2500 | B52: 2500 | C52: 62.5 | D52: 48 | E52: 400 | F52: 2100
A53: 2500 | B53: 2750 | C53: 68.75 | D53: 48 | E53: 400 | F53: 2350
A54: 2500 | B54: 3000 | C54: 75 | D54: 48 | E54: 400 | F54: 2600
A55: 2500 | B55: 3250 | C55: 81.25 | D55: 48 | E55: 400 | F55: 2850
A56: 2500 | B56: 3500 | C56: 87.5 | D56: 48 | E56: 400 | F56: 3100
A57: 2500 | B57: 3750 | C57: 93.75 | D57: 48 | E57: 400 | F57: 3350
A58: 2500 | B58: 4000 | C58: 100 | D58: 48 | E58: 400 | F58: 3600
A59: 2500 | B59: 4250 | C59: 106.25 | D59: 48 | E59: 400 | F59: 3850
A60: 2500 | B60: 4500 | C60: 112.5 | D60: 76 | E60: 450 | F60: 4050
A61: 2500 | B61: 4750 | C61: 118.75 | D61: 76 | E61: 500 | F61: 4250
A62: 2500 | B62: 5000 | C62: 125 | D62: 76 | E62: 500 | F62: 4500
A63: 2750 | B63: 2250 | C63: 61.875 | D63: 48 | E63: 400 | F63: 1850
A64: 2750 | B64: 2500 | C64: 68.75 | D64: 48 | E64: 400 | F64: 2100
A65: 2750 | B65: 2750 | C65: 75.625 | D65: 48 | E65: 400 | F65: 2350
A66: 2750 | B66: 3000 | C66: 82.5 | D66: 48 | E66: 400 | F66: 2600
A67: 2750 | B67: 3250 | C67: =A67*B67*10/1000000 -> 89.375 | D67: 48 | E67: 400 | F67: =B67-E67 -> 2850
A68: 2750 | B68: 3500 | C68: 96.25 | D68: 48 | E68: 400 | F68: 3100
A69: 2750 | B69: 3750 | C69: 103.125 | D69: 48 | E69: 400 | F69: 3350
A70: 2750 | B70: 4000 | C70: 110 | D70: 48 | E70: 400 | F70: 3600
A71: 2750 | B71: 4250 | C71: 116.875 | D71: 48 | E71: 400 | F71: 3850
A72: 2750 | B72: 4500 | C72: 123.75 | D72: 76 | E72: 450 | F72: 4050
A73: 2750 | B73: 4750 | C73: 130.625 | D73: 76 | E73: 500 | F73: 4250
A74: 2750 | B74: 5000 | C74: 137.5 | D74: 76 | E74: 500 | F74: 4500
A75: 3000 | B75: 2250 | C75: 67.5 | D75: 48 | E75: 400 | F75: 1850
A76: 3000 | B76: 2500 | C76: 75 | D76: 48 | E76: 400 | F76: 2100
A77: 3000 | B77: 2750 | C77: 82.5 | D77: 48 | E77: 400 | F77: 2350
A78: 3000 | B78: 3000 | C78: 90 | D78: 48 | E78: 400 | F78: 2600
A79: 3000 | B79: 3250 | C79: 97.5 | D79: 48 | E79: 400 | F79: 2850
A80: 3000 | B80: 3500 | C80: 105 | D80: 48 | E80: 400 | F80: 3100
A81: 3000 | B81: 3750 | C81: 112.5 | D81: 60 | E81: 400 | F81: 3350
A82: 3000 | B82: 4000 | C82: 120 | D82: 60 | E82: 400 | F82: 3600
A83: 3000 | B83: 4250 | C83: 127.5 | D83: 60 | E83: 400 | F83: 3850
A84: 3000 | B84: 4500 | C84: 135 | D84: 76 | E84: 450 | F84: 4050
A85: 3000 | B85: 4750 | C85: 142.5 | D85: 76 | E85: 500 | F85: 4250
A86: 3000 | B86: 5000 | C86: 150 | D86: 76 | E86: 500 | F86: 4500
A87: 3250 | B87: 2250 | C87: 73.125 | D87: 48 | E87: 400 | F87: 1850
A88: 3250 | B88: 2500 | C88: 81.25 | D88: 48 | E88: 400 | F88: 2100
A89: 3250 | B89: 2750 | C89: 89.375 | D89: 48 | E89: 400 | F89: 2350
A90: 3250 | B90: 3000 | C90: 97.5 | D90: 48 | E90: 400 | F90: 2600
A91: 3250 | B91: 3250 | C91: 105.625 | D91: 60 | E91: 400 | F91: 2850
A92: 3250 | B92: 3500 | C92: 113.75 | D92: 60 | E92: 400 | F92: 3100
A93: 3250 | B93: 3750 | C93: 121.875 | D93: 60 | E93: 400 | F93: 3350
A94: 3250 | B94: 4000 | C94: 130 | D94: 60 | E94: 400 | F94: 3600
A95: 3250 | B95: 4250 | C95: 138.125 | D95: 60 | E95: 400 | F95: 3850
A96: 3250 | B96: 4500 | C96: 146.25 | D96: 76 | E96: 450 | F96: 4050
A97: 3250 | B97: 4750 | C97: 154.375 | D97: 76 | E97: 500 | F97: 4250
A98: 3250 | B98: 5000 | C98: 162.5 | D98: 76 | E98: 500 | F98: 4500
A99: 3500 | B99: 2250 | C99: 78.75 | D99: 60 | E99: 400 | F99: 1850
A100: 3500 | B100: 2500 | C100: 87.5 | D100: 60 | E100: 400 | F100: 2100
A101: 3500 | B101: 2750 | C101: 96.25 | D101: 60 | E101: 400 | F101: 2350
A102: 3500 | B102: 3000 | C102: 105 | D102: 60 | E102: 400 | F102: 2600
A103: 3500 | B103: 3250 | C103: 113.75 | D103: 60 | E103: 400 | F103: 2850
A104: 3500 | B104: 3500 | C104: 122.5 | D104: 60 | E104: 400 | F104: 3100
A105: 3500 | B105: 3750 | C105: 131.25 | D105: 60 | E105: 400 | F105: 3350
A106: 3500 | B106: 4000 | C106: 140 | D106: 60 | E106: 400 | F106: 3600
A107: 3500 | B107: 4250 | C107: 148.75 | D107: 60 | E107: 400 | F107: 3850
A108: 3500 | B108: 4500 | C108: 157.5 | D108: 76 | E108: 450 | F108: 4050
A109: 3500 | B109: 4750 | C109: 166.25 | D109: 76 | E109: 500 | F109: 4250
A110: 3500 | B110: 5000 | C110: 175 | D110: 76 | E110: 500 | F110: 4500
A111: 3750 | B111: 2250 | C111: 84.375 | D111: 60 | E111: 400 | F111: 1850
A112: 3750 | B112: 2500 | C112: 93.75 | D112: 60 | E112: 400 | F112: 2100
A113: 3750 | B113: 2750 | C113: 103.125 | D113: 60 | E113: 400 | F113: 2350
A114: 3750 | B114: 3000 | C114: 112.5 | D114: 60 | E114: 400 | F114: 2600
A115: 3750 | B115: 3250 | C115: 121.875 | D115: 60 | E115: 400 | F115: 2850
A116: 3750 | B116: 3500 | C116: 131.25 | D116: 60 | E116: 400 | F116: 3100
A117: 3750 | B117: 3750 | C117: 140.625 | D117: 60 | E117: 400 | F117: 3350
A118: 3750 | B118: 4000 | C118: 150 | D118: 60 | E118: 400 | F118: 3600
A119: 3750 | B119: 4250 | C119: 159.375 | D119: 60 | E119: 400 | F119: 3850
A120: 3750 | B120: 4500 | C120: 168.75 | D120: 76 | E120: 450 | F120: 4050
A121: 3750 | B121: 4750 | C121: 178.125 | D121: 76 | E121: 500 | F121: 4250
A122: 3750 | B122: 5000 | C122: 187.5 | D122: 76 | E122: 500 | F122: 4500
A123: 4000 | B123: 2250 | C123: 90 | D123: 60 | E123: 400 | F123: 1850
A124: 4000 | B124: 2500 | C124: 100 | D124: 60 | E124: 400 | F124: 2100
A125: 4000 | B125: 2750 | C125: 110 | D125: 60 | E125: 400 | F125: 2350
A126: 4000 | B126: 3000 | C126: 120 | D126: 60 | E126: 400 | F126: 2600
A127: 4000 | B127: 3250 | C127: 130 | D127: 60 | E127: 400 | F127: 2850
A128: 4000 | B128: 3500 | C128: 140 | D128: 60 | E128: 400 | F128: 3100
A129: 4000 | B129: 3750 | C129: 150 | D129: 60 | E129: 400 | F129: 3350
A130: 4000 | B130: 4000 | C130: 160 | D130: 60 | E130: 400 | F130: 3600
A131: 4000 | B131: 4250 | C131: =A131*B131*10/1000000 -> 170 | D131: 60 | E131: 400 | F131: =B131-E131 -> 3850
A132: 4000 | B132: 4500 | C132: 180 | D132: 76 | E132: 450 | F132: 4050
A133: 4000 | B133: 4750 | C133: 190 | D133: 76 | E133: 500 | F133: 4250
A134: 4000 | B134: 5000 | C134: 200 | D134: 76 | E134: 500 | F134: 4500
A135: 4250 | B135: 2250 | C135: 95.625 | D135: 60 | E135: 400 | F135: 1850
A136: 4250 | B136: 2500 | C136: 106.25 | D136: 60 | E136: 400 | F136: 2100
A137: 4250 | B137: 2750 | C137: 116.875 | D137: 60 | E137: 400 | F137: 2350
A138: 4250 | B138: 3000 | C138: 127.5 | D138: 60 | E138: 400 | F138: 2600
A139: 4250 | B139: 3250 | C139: 138.125 | D139: 60 | E139: 400 | F139: 2850
A140: 4250 | B140: 3500 | C140: 148.75 | D140: 60 | E140: 400 | F140: 3100
A141: 4250 | B141: 3750 | C141: 159.375 | D141: 60 | E141: 400 | F141: 3350
A142: 4250 | B142: 4000 | C142: 170 | D142: 76 | E142: 400 | F142: 3600
A143: 4250 | B143: 4250 | C143: 180.625 | D143: 76 | E143: 450 | F143: 3800
A144: 4250 | B144: 4500 | C144: 191.25 | D144: 76 | E144: 450 | F144: 4050
A145: 4250 | B145: 4750 | C145: 201.875 | D145: 76 | E145: 500 | F145: 4250
A146: 4250 | B146: 5000 | C146: 212.5 | D146: 76 | E146: 500 | F146: 4500
A147: 4500 | B147: 2250 | C147: 101.25 | D147: 60 | E147: 400 | F147: 1850
A148: 4500 | B148: 2500 | C148: 112.5 | D148: 60 | E148: 400 | F148: 2100
A149: 4500 | B149: 2750 | C149: 123.75 | D149: 60 | E149: 400 | F149: 2350
A150: 4500 | B150: 3000 | C150: 135 | D150: 60 | E150: 400 | F150: 2600
A151: 4500 | B151: 3250 | C151: 146.25 | D151: 76 | E151: 400 | F151: 2850
A152: 4500 | B152: 3500 | C152: 157.5 | D152: 76 | E152: 400 | F152: 3100
A153: 4500 | B153: 3750 | C153: 168.75 | D153: 76 | E153: 400 | F153: 3350
A154: 4500 | B154: 4000 | C154: 180 | D154: 76 | E154: 400 | F154: 3600
A155: 4500 | B155: 4250 | C155: 191.25 | D155: 76 | E155: 450 | F155: 3800
A156: 4500 | B156: 4500 | C156: 202.5 | D156: 76 | E156: 450 | F156: 4050
A157: 4500 | B157: 4750 | C157: 213.75 | D157: 76 | E157: 500 | F157: 4250
A158: 4500 | B158: 5000 | C158: 225 | D158: 76 | E158: 500 | F158: 4500
A159: 4750 | B159: 2250 | C159: 106.875 | D159: 60 | E159: 400 | F159: 1850
A160: 4750 | B160: 2500 | C160: 118.75 | D160: 60 | E160: 400 | F160: 2100
A161: 4750 | B161: 2750 | C161: 130.625 | D161: 76 | E161: 400 | F161: 2350
A162: 4750 | B162: 3000 | C162: 142.5 | D162: 76 | E162: 400 | F162: 2600
A163: 4750 | B163: 3250 | C163: 154.375 | D163: 76 | E163: 400 | F163: 2850
A164: 4750 | B164: 3500 | C164: 166.25 | D164: 76 | E164: 400 | F164: 3100
A165: 4750 | B165: 3750 | C165: 178.125 | D165: 76 | E165: 400 | F165: 3350
A166: 4750 | B166: 4000 | C166: 190 | D166: 76 | E166: 400 | F166: 3600
A167: 4750 | B167: 4250 | C167: 201.875 | D167: 76 | E167: 450 | F167: 3800
A168: 4750 | B168: 4500 | C168: 213.75 | D168: 76 | E168: 450 | F168: 4050
A169: 4750 | B169: 4750 | C169: 225.625 | D169: 76 | E169: 500 | F169: 4250
A170: 4750 | B170: 5000 | C170: 237.5 | D170: 76 | E170: 500 | F170: 4500
A171: 5000 | B171: 2250 | C171: 112.5 | D171: 76 | E171: 400 | F171: 1850
A172: 5000 | B172: 2500 | C172: 125 | D172: 76 | E172: 400 | F172: 2100
A173: 5000 | B173: 2750 | C173: 137.5 | D173: 76 | E173: 400 | F173: 2350
A174: 5000 | B174: 3000 | C174: 150 | D174: 76 | E174: 400 | F174: 2600
A175: 5000 | B175: 3250 | C175: 162.5 | D175: 76 | E175: 400 | F175: 2850
A176: 5000 | B176: 3500 | C176: 175 | D176: 76 | E176: 400 | F176: 3100
A177: 5000 | B177: 3750 | C177: 187.5 | D177: 76 | E177: 400 | F177: 3350
A178: 5000 | B178: 4000 | C178: 200 | D178: 76 | E178: 400 | F178: 3600
A179: 5000 | B179: 4250 | C179: 212.5 | D179: 76 | E179: 450 | F179: 3800
A180: 5000 | B180: 4500 | C180: 225 | D180: 76 | E180: 450 | F180: 4050
A181: 5000 | B181: 4750 | C181: 237.5 | D181: 76 | E181: 500 | F181: 4250
A182: 5000 | B182: 5000 | C182: 250 | D182: 76 | E182: 500 | F182: 4500
A183: 5250 | B183: 2250 | C183: 118.125 | D183: 76 | E183: 400 | F183: 1850
A184: 5250 | B184: 2500 | C184: 131.25 | D184: 76 | E184: 400 | F184: 2100
A185: 5250 | B185: 2750 | C185: 144.375 | D185: 76 | E185: 400 | F185: 2350
A186: 5250 | B186: 3000 | C186: 157.5 | D186: 76 | E186: 400 | F186: 2600
A187: 5250 | B187: 3250 | C187: 170.625 | D187: 76 | E187: 400 | F187: 2850
A188: 5250 | B188: 3500 | C188: 183.75 | D188: 76 | E188: 400 | F188: 3100
A189: 5250 | B189: 3750 | C189: 196.875 | D189: 76 | E189: 400 | F189: 3350
A190: 5250 | B190: 4000 | C190: 210 | D190: 76 | E190: 400 | F190: 3600
A191: 5250 | B191: 4250 | C191: 223.125 | D191: 76 | E191: 450 | F191: 3800
A192: 5250 | B192: 4500 | C192: 236.25 | D192: 102 | E192: 500 | F192: 4000
A193: 5250 | B193: 4750 | C193: 249.375 | D193: 102 | E193: 500 | F193: 4250
A194: 5250 | B194: 5000 | C194: 262.5 | D194: 102 | E194: 500 | F194: 4500
A195: 5500 | B195: 2250 | C195: =A195*B195*10/1000000 -> 123.75 | D195: 76 | E195: 400 | F195: =B195-E195 -> 1850
A196: 5500 | B196: 2500 | C196: 137.5 | D196: 76 | E196: 400 | F196: 2100
A197: 5500 | B197: 2750 | C197: 151.25 | D197: 76 | E197: 400 | F197: 2350
A198: 5500 | B198: 3000 | C198: 165 | D198: 76 | E198: 400 | F198: 2600
A199: 5500 | B199: 3250 | C199: 178.75 | D199: 76 | E199: 400 | F199: 2850
A200: 5500 | B200: 3500 | C200: 192.5 | D200: 76 | E200: 400 | F200: 3100
A201: 5500 | B201: 3750 | C201: 206.25 | D201: 76 | E201: 400 | F201: 3350
... 149 more rows

Sheet Aria (hidden)
A2: Šířka celková "A" [mm]: | B2: výška celková [mm]: | C2: hmotnost | D2: hřídel | E2: bočnice mm | F2: výška "B" mm
A3: 1500 | B3: 2250 | C3: =A3*B3*10/1000000 -> 33.75 | D3: 48 | E3: 400 | F3: =B3-E3 -> 1850
A4: 1500 | B4: 2500 | C4: 37.5 | D4: 48 | E4: 400 | F4: 2100
A5: 1500 | B5: 2750 | C5: 41.25 | D5: 48 | E5: 400 | F5: 2350
A6: 1500 | B6: 3000 | C6: 45 | D6: 48 | E6: 400 | F6: 2600
A7: 1500 | B7: 3250 | C7: 48.75 | D7: 48 | E7: 400 | F7: 2850
A8: 1500 | B8: 3500 | C8: 52.5 | D8: 48 | E8: 400 | F8: 3100
A9: 1500 | B9: 3750 | C9: 56.25 | D9: 48 | E9: 400 | F9: 3350
A10: 1500 | B10: 4000 | C10: 60 | D10: 48 | E10: 400 | F10: 3600
A11: 1500 | B11: 4250 | C11: 63.75 | D11: 48 | E11: 400 | F11: 3850
A12: 1500 | B12: 4500 | C12: 67.5 | D12: 76 | E12: 450 | F12: 4050
A13: 1500 | B13: 4750 | C13: 71.25 | D13: 76 | E13: 500 | F13: 4250
A14: 1500 | B14: 5000 | C14: 75 | D14: 76 | E14: 500 | F14: 4500
A15: 1750 | B15: 2250 | C15: 39.375 | D15: 48 | E15: 400 | F15: 1850
A16: 1750 | B16: 2500 | C16: 43.75 | D16: 48 | E16: 400 | F16: 2100
A17: 1750 | B17: 2750 | C17: 48.125 | D17: 48 | E17: 400 | F17: 2350
A18: 1750 | B18: 3000 | C18: 52.5 | D18: 48 | E18: 400 | F18: 2600
A19: 1750 | B19: 3250 | C19: 56.875 | D19: 48 | E19: 400 | F19: 2850
A20: 1750 | B20: 3500 | C20: 61.25 | D20: 48 | E20: 400 | F20: 3100
A21: 1750 | B21: 3750 | C21: 65.625 | D21: 48 | E21: 400 | F21: 3350
A22: 1750 | B22: 4000 | C22: 70 | D22: 48 | E22: 400 | F22: 3600
A23: 1750 | B23: 4250 | C23: 74.375 | D23: 48 | E23: 400 | F23: 3850
A24: 1750 | B24: 4500 | C24: 78.75 | D24: 76 | E24: 450 | F24: 4050
A25: 1750 | B25: 4750 | C25: 83.125 | D25: 76 | E25: 500 | F25: 4250
A26: 1750 | B26: 5000 | C26: 87.5 | D26: 76 | E26: 500 | F26: 4500
A27: 2000 | B27: 2250 | C27: 45 | D27: 48 | E27: 400 | F27: 1850
A28: 2000 | B28: 2500 | C28: 50 | D28: 48 | E28: 400 | F28: 2100
A29: 2000 | B29: 2750 | C29: 55 | D29: 48 | E29: 400 | F29: 2350
A30: 2000 | B30: 3000 | C30: 60 | D30: 48 | E30: 400 | F30: 2600
A31: 2000 | B31: 3250 | C31: 65 | D31: 48 | E31: 400 | F31: 2850
A32: 2000 | B32: 3500 | C32: 70 | D32: 48 | E32: 400 | F32: 3100
A33: 2000 | B33: 3750 | C33: 75 | D33: 48 | E33: 400 | F33: 3350
A34: 2000 | B34: 4000 | C34: 80 | D34: 48 | E34: 400 | F34: 3600
A35: 2000 | B35: 4250 | C35: 85 | D35: 48 | E35: 400 | F35: =B35-E35 -> 3850
A36: 2000 | B36: 4500 | C36: 90 | D36: 76 | E36: 450 | F36: 4050
A37: 2000 | B37: 4750 | C37: 95 | D37: 76 | E37: 500 | F37: 4250
A38: 2000 | B38: 5000 | C38: 100 | D38: 76 | E38: 500 | F38: 4500
A39: 2250 | B39: 2250 | C39: 50.625 | D39: 48 | E39: 400 | F39: 1850
A40: 2250 | B40: 2500 | C40: 56.25 | D40: 48 | E40: 400 | F40: 2100
A41: 2250 | B41: 2750 | C41: 61.875 | D41: 48 | E41: 400 | F41: 2350
A42: 2250 | B42: 3000 | C42: 67.5 | D42: 48 | E42: 400 | F42: 2600
A43: 2250 | B43: 3250 | C43: 73.125 | D43: 48 | E43: 400 | F43: 2850
A44: 2250 | B44: 3500 | C44: 78.75 | D44: 48 | E44: 400 | F44: 3100
A45: 2250 | B45: 3750 | C45: 84.375 | D45: 48 | E45: 400 | F45: 3350
A46: 2250 | B46: 4000 | C46: 90 | D46: 48 | E46: 400 | F46: 3600
A47: 2250 | B47: 4250 | C47: 95.625 | D47: 48 | E47: 400 | F47: 3850
A48: 2250 | B48: 4500 | C48: 101.25 | D48: 76 | E48: 450 | F48: 4050
A49: 2250 | B49: 4750 | C49: 106.875 | D49: 76 | E49: 500 | F49: 4250
A50: 2250 | B50: 5000 | C50: 112.5 | D50: 76 | E50: 500 | F50: 4500
A51: 2500 | B51: 2250 | C51: 56.25 | D51: 48 | E51: 400 | F51: 1850
A52: 2500 | B52: 2500 | C52: 62.5 | D52: 48 | E52: 400 | F52: 2100
A53: 2500 | B53: 2750 | C53: 68.75 | D53: 48 | E53: 400 | F53: 2350
A54: 2500 | B54: 3000 | C54: 75 | D54: 48 | E54: 400 | F54: 2600
A55: 2500 | B55: 3250 | C55: 81.25 | D55: 48 | E55: 400 | F55: 2850
A56: 2500 | B56: 3500 | C56: 87.5 | D56: 48 | E56: 400 | F56: 3100
A57: 2500 | B57: 3750 | C57: 93.75 | D57: 48 | E57: 400 | F57: 3350
A58: 2500 | B58: 4000 | C58: 100 | D58: 48 | E58: 400 | F58: 3600
A59: 2500 | B59: 4250 | C59: 106.25 | D59: 48 | E59: 400 | F59: 3850
A60: 2500 | B60: 4500 | C60: 112.5 | D60: 76 | E60: 450 | F60: 4050
A61: 2500 | B61: 4750 | C61: 118.75 | D61: 76 | E61: 500 | F61: 4250
A62: 2500 | B62: 5000 | C62: 125 | D62: 76 | E62: 500 | F62: 4500
A63: 2750 | B63: 2250 | C63: 61.875 | D63: 48 | E63: 400 | F63: 1850
A64: 2750 | B64: 2500 | C64: 68.75 | D64: 48 | E64: 400 | F64: 2100
A65: 2750 | B65: 2750 | C65: 75.625 | D65: 48 | E65: 400 | F65: 2350
A66: 2750 | B66: 3000 | C66: 82.5 | D66: 48 | E66: 400 | F66: 2600
A67: 2750 | B67: 3250 | C67: =A67*B67*10/1000000 -> 89.375 | D67: 48 | E67: 400 | F67: =B67-E67 -> 2850
A68: 2750 | B68: 3500 | C68: 96.25 | D68: 48 | E68: 400 | F68: 3100
A69: 2750 | B69: 3750 | C69: 103.125 | D69: 48 | E69: 400 | F69: 3350
A70: 2750 | B70: 4000 | C70: 110 | D70: 48 | E70: 400 | F70: 3600
A71: 2750 | B71: 4250 | C71: 116.875 | D71: 48 | E71: 400 | F71: 3850
A72: 2750 | B72: 4500 | C72: 123.75 | D72: 76 | E72: 450 | F72: 4050
A73: 2750 | B73: 4750 | C73: 130.625 | D73: 76 | E73: 500 | F73: 4250
A74: 2750 | B74: 5000 | C74: 137.5 | D74: 76 | E74: 500 | F74: 4500
A75: 3000 | B75: 2250 | C75: 67.5 | D75: 48 | E75: 400 | F75: 1850
A76: 3000 | B76: 2500 | C76: 75 | D76: 48 | E76: 400 | F76: 2100
A77: 3000 | B77: 2750 | C77: 82.5 | D77: 48 | E77: 400 | F77: 2350
A78: 3000 | B78: 3000 | C78: 90 | D78: 48 | E78: 400 | F78: 2600
A79: 3000 | B79: 3250 | C79: 97.5 | D79: 48 | E79: 400 | F79: 2850
A80: 3000 | B80: 3500 | C80: 105 | D80: 48 | E80: 400 | F80: 3100
A81: 3000 | B81: 3750 | C81: 112.5 | D81: 60 | E81: 400 | F81: 3350
A82: 3000 | B82: 4000 | C82: 120 | D82: 60 | E82: 400 | F82: 3600
A83: 3000 | B83: 4250 | C83: 127.5 | D83: 60 | E83: 400 | F83: 3850
A84: 3000 | B84: 4500 | C84: 135 | D84: 76 | E84: 450 | F84: 4050
A85: 3000 | B85: 4750 | C85: 142.5 | D85: 76 | E85: 500 | F85: 4250
A86: 3000 | B86: 5000 | C86: 150 | D86: 76 | E86: 500 | F86: 4500
A87: 3250 | B87: 2250 | C87: 73.125 | D87: 48 | E87: 400 | F87: 1850
A88: 3250 | B88: 2500 | C88: 81.25 | D88: 48 | E88: 400 | F88: 2100
A89: 3250 | B89: 2750 | C89: 89.375 | D89: 48 | E89: 400 | F89: 2350
A90: 3250 | B90: 3000 | C90: 97.5 | D90: 48 | E90: 400 | F90: 2600
A91: 3250 | B91: 3250 | C91: 105.625 | D91: 60 | E91: 400 | F91: 2850
A92: 3250 | B92: 3500 | C92: 113.75 | D92: 60 | E92: 400 | F92: 3100
A93: 3250 | B93: 3750 | C93: 121.875 | D93: 60 | E93: 400 | F93: 3350
A94: 3250 | B94: 4000 | C94: 130 | D94: 60 | E94: 400 | F94: 3600
A95: 3250 | B95: 4250 | C95: 138.125 | D95: 60 | E95: 400 | F95: 3850
A96: 3250 | B96: 4500 | C96: 146.25 | D96: 76 | E96: 450 | F96: 4050
A97: 3250 | B97: 4750 | C97: 154.375 | D97: 76 | E97: 500 | F97: 4250
A98: 3250 | B98: 5000 | C98: 162.5 | D98: 76 | E98: 500 | F98: 4500
A99: 3500 | B99: 2250 | C99: 78.75 | D99: 60 | E99: 400 | F99: =B99-E99 -> 1850
A100: 3500 | B100: 2500 | C100: 87.5 | D100: 60 | E100: 400 | F100: 2100
A101: 3500 | B101: 2750 | C101: 96.25 | D101: 60 | E101: 400 | F101: 2350
A102: 3500 | B102: 3000 | C102: 105 | D102: 60 | E102: 400 | F102: 2600
A103: 3500 | B103: 3250 | C103: 113.75 | D103: 60 | E103: 400 | F103: 2850
A104: 3500 | B104: 3500 | C104: 122.5 | D104: 60 | E104: 400 | F104: 3100
A105: 3500 | B105: 3750 | C105: 131.25 | D105: 60 | E105: 400 | F105: 3350
A106: 3500 | B106: 4000 | C106: 140 | D106: 60 | E106: 400 | F106: 3600
A107: 3500 | B107: 4250 | C107: 148.75 | D107: 60 | E107: 400 | F107: 3850
A108: 3500 | B108: 4500 | C108: 157.5 | D108: 76 | E108: 450 | F108: =B108-E107 -> 4100
A109: 3500 | B109: 4750 | C109: 166.25 | D109: 76 | E109: 500 | F109: =B109-E108 -> 4300
A110: 3500 | B110: 5000 | C110: 175 | D110: 76 | E110: 500 | F110: =B110-E109 -> 4500
A111: 3750 | B111: 2250 | C111: 84.375 | D111: 60 | E111: 400 | F111: =B111-E110 -> 1750
A112: 3750 | B112: 2500 | C112: 93.75 | D112: 60 | E112: 400 | F112: =B112-E112 -> 2100
A113: 3750 | B113: 2750 | C113: 103.125 | D113: 60 | E113: 400 | F113: 2350
A114: 3750 | B114: 3000 | C114: 112.5 | D114: 60 | E114: 400 | F114: 2600
A115: 3750 | B115: 3250 | C115: 121.875 | D115: 60 | E115: 400 | F115: 2850
A116: 3750 | B116: 3500 | C116: 131.25 | D116: 60 | E116: 400 | F116: 3100
A117: 3750 | B117: 3750 | C117: 140.625 | D117: 60 | E117: 400 | F117: 3350
A118: 3750 | B118: 4000 | C118: 150 | D118: 60 | E118: 400 | F118: 3600
A119: 3750 | B119: 4250 | C119: 159.375 | D119: 60 | E119: 400 | F119: 3850
A120: 3750 | B120: 4500 | C120: 168.75 | D120: 76 | E120: 450 | F120: 4050
A121: 3750 | B121: 4750 | C121: 178.125 | D121: 76 | E121: 500 | F121: 4250
A122: 3750 | B122: 5000 | C122: 187.5 | D122: 76 | E122: 500 | F122: 4500
A123: 4000 | B123: 2250 | C123: 90 | D123: 60 | E123: 400 | F123: 1850
A124: 4000 | B124: 2500 | C124: 100 | D124: 60 | E124: 400 | F124: 2100
A125: 4000 | B125: 2750 | C125: 110 | D125: 60 | E125: 400 | F125: 2350
A126: 4000 | B126: 3000 | C126: 120 | D126: 60 | E126: 400 | F126: 2600
A127: 4000 | B127: 3250 | C127: 130 | D127: 60 | E127: 400 | F127: 2850
A128: 4000 | B128: 3500 | C128: 140 | D128: 60 | E128: 400 | F128: 3100
A129: 4000 | B129: 3750 | C129: 150 | D129: 60 | E129: 400 | F129: 3350
A130: 4000 | B130: 4000 | C130: 160 | D130: 60 | E130: 400 | F130: 3600
A131: 4000 | B131: 4250 | C131: =A131*B131*10/1000000 -> 170 | D131: 60 | E131: 400 | F131: 3850
A132: 4000 | B132: 4500 | C132: 180 | D132: 76 | E132: 450 | F132: 4050
A133: 4000 | B133: 4750 | C133: 190 | D133: 76 | E133: 500 | F133: 4250
A134: 4000 | B134: 5000 | C134: 200 | D134: 76 | E134: 500 | F134: 4500
A135: 4250 | B135: 2250 | C135: 95.625 | D135: 60 | E135: 400 | F135: 1850
A136: 4250 | B136: 2500 | C136: 106.25 | D136: 60 | E136: 400 | F136: 2100
A137: 4250 | B137: 2750 | C137: 116.875 | D137: 60 | E137: 400 | F137: 2350
A138: 4250 | B138: 3000 | C138: 127.5 | D138: 60 | E138: 400 | F138: 2600
A139: 4250 | B139: 3250 | C139: 138.125 | D139: 60 | E139: 400 | F139: 2850
A140: 4250 | B140: 3500 | C140: 148.75 | D140: 60 | E140: 400 | F140: 3100
A141: 4250 | B141: 3750 | C141: 159.375 | D141: 60 | E141: 400 | F141: 3350
A142: 4250 | B142: 4000 | C142: 170 | D142: 76 | E142: 400 | F142: 3600
A143: 4250 | B143: 4250 | C143: 180.625 | D143: 76 | E143: 450 | F143: 3800
A144: 4250 | B144: 4500 | C144: 191.25 | D144: 76 | E144: 450 | F144: 4050
A145: 4250 | B145: 4750 | C145: 201.875 | D145: 76 | E145: 500 | F145: 4250
A146: 4250 | B146: 5000 | C146: 212.5 | D146: 76 | E146: 500 | F146: 4500
A147: 4500 | B147: 2250 | C147: 101.25 | D147: 60 | E147: 400 | F147: 1850
A148: 4500 | B148: 2500 | C148: 112.5 | D148: 60 | E148: 400 | F148: 2100
A149: 4500 | B149: 2750 | C149: 123.75 | D149: 60 | E149: 400 | F149: 2350
A150: 4500 | B150: 3000 | C150: 135 | D150: 60 | E150: 400 | F150: 2600
A151: 4500 | B151: 3250 | C151: 146.25 | D151: 76 | E151: 400 | F151: 2850
A152: 4500 | B152: 3500 | C152: 157.5 | D152: 76 | E152: 400 | F152: 3100
A153: 4500 | B153: 3750 | C153: 168.75 | D153: 76 | E153: 400 | F153: 3350
A154: 4500 | B154: 4000 | C154: 180 | D154: 76 | E154: 400 | F154: 3600
A155: 4500 | B155: 4250 | C155: 191.25 | D155: 76 | E155: 450 | F155: 3800
A156: 4500 | B156: 4500 | C156: 202.5 | D156: 76 | E156: 450 | F156: 4050
A157: 4500 | B157: 4750 | C157: 213.75 | D157: 76 | E157: 500 | F157: 4250
A158: 4500 | B158: 5000 | C158: 225 | D158: 76 | E158: 500 | F158: 4500
A159: 4750 | B159: 2250 | C159: 106.875 | D159: 60 | E159: 400 | F159: 1850
A160: 4750 | B160: 2500 | C160: 118.75 | D160: 60 | E160: 400 | F160: 2100
A161: 4750 | B161: 2750 | C161: 130.625 | D161: 76 | E161: 400 | F161: 2350
A162: 4750 | B162: 3000 | C162: 142.5 | D162: 76 | E162: 400 | F162: 2600
A163: 4750 | B163: 3250 | C163: 154.375 | D163: 76 | E163: 400 | F163: 2850
A164: 4750 | B164: 3500 | C164: 166.25 | D164: 76 | E164: 400 | F164: 3100
A165: 4750 | B165: 3750 | C165: 178.125 | D165: 76 | E165: 400 | F165: 3350
A166: 4750 | B166: 4000 | C166: 190 | D166: 76 | E166: 400 | F166: 3600
A167: 4750 | B167: 4250 | C167: 201.875 | D167: 76 | E167: 450 | F167: 3800
A168: 4750 | B168: 4500 | C168: 213.75 | D168: 76 | E168: 450 | F168: 4050
A169: 4750 | B169: 4750 | C169: 225.625 | D169: 76 | E169: 500 | F169: 4250
A170: 4750 | B170: 5000 | C170: 237.5 | D170: 76 | E170: 500 | F170: 4500
A171: 5000 | B171: 2250 | C171: 112.5 | D171: 76 | E171: 400 | F171: 1850
A172: 5000 | B172: 2500 | C172: 125 | D172: 76 | E172: 400 | F172: 2100
A173: 5000 | B173: 2750 | C173: 137.5 | D173: 76 | E173: 400 | F173: 2350
A174: 5000 | B174: 3000 | C174: 150 | D174: 76 | E174: 400 | F174: 2600
A175: 5000 | B175: 3250 | C175: 162.5 | D175: 76 | E175: 400 | F175: 2850
A176: 5000 | B176: 3500 | C176: 175 | D176: 76 | E176: 400 | F176: =B176-E176 -> 3100
A177: 5000 | B177: 3750 | C177: 187.5 | D177: 76 | E177: 400 | F177: 3350
A178: 5000 | B178: 4000 | C178: 200 | D178: 76 | E178: 400 | F178: 3600
A179: 5000 | B179: 4250 | C179: 212.5 | D179: 76 | E179: 450 | F179: 3800
A180: 5000 | B180: 4500 | C180: 225 | D180: 76 | E180: 450 | F180: 4050
A181: 5000 | B181: 4750 | C181: 237.5 | D181: 76 | E181: 500 | F181: 4250
A182: 5000 | B182: 5000 | C182: 250 | D182: 76 | E182: 500 | F182: 4500
A183: 5250 | B183: 2250 | C183: 118.125 | D183: 76 | E183: 400 | F183: 1850
A184: 5250 | B184: 2500 | C184: 131.25 | D184: 76 | E184: 400 | F184: 2100
A185: 5250 | B185: 2750 | C185: 144.375 | D185: 76 | E185: 400 | F185: 2350
A186: 5250 | B186: 3000 | C186: 157.5 | D186: 76 | E186: 400 | F186: 2600
A187: 5250 | B187: 3250 | C187: 170.625 | D187: 76 | E187: 400 | F187: 2850
A188: 5250 | B188: 3500 | C188: 183.75 | D188: 76 | E188: 400 | F188: 3100
A189: 5250 | B189: 3750 | C189: 196.875 | D189: 76 | E189: 400 | F189: 3350
A190: 5250 | B190: 4000 | C190: 210 | D190: 76 | E190: 400 | F190: 3600
A191: 5250 | B191: 4250 | C191: 223.125 | D191: 76 | E191: 450 | F191: 3800
A192: 5250 | B192: 4500 | C192: 236.25 | D192: 102 | E192: 500 | F192: 4000
A193: 5250 | B193: 4750 | C193: 249.375 | D193: 102 | E193: 500 | F193: 4250
A194: 5250 | B194: 5000 | C194: 262.5 | D194: 102 | E194: 500 | F194: 4500
A195: 5500 | B195: 2250 | C195: =A195*B195*10/1000000 -> 123.75 | D195: 76 | E195: 400 | F195: 1850
A196: 5500 | B196: 2500 | C196: 137.5 | D196: 76 | E196: 400 | F196: 2100
A197: 5500 | B197: 2750 | C197: 151.25 | D197: 76 | E197: 400 | F197: 2350
A198: 5500 | B198: 3000 | C198: 165 | D198: 76 | E198: 400 | F198: 2600
A199: 5500 | B199: 3250 | C199: 178.75 | D199: 76 | E199: 400 | F199: 2850
A200: 5500 | B200: 3500 | C200: 192.5 | D200: 76 | E200: 400 | F200: 3100
A201: 5500 | B201: 3750 | C201: 206.25 | D201: 76 | E201: 400 | F201: 3350
... 149 more rows

Sheet Verona R14 (hidden)
A2: Šířka celková "A" [mm]: | B2: výška celková [mm]: | C2: hmotnost | D2: hřídel | E2: bočnice mm | F2: výška "B" mm
A3: 1500 | B3: 2250 | C3: =A3*B3*12/1000000 -> 40.5 | D3: 48 | E3: 400 | F3: =B3-E3 -> 1850
A4: 1500 | B4: 2500 | C4: 45 | D4: 48 | E4: 400 | F4: 2100
A5: 1500 | B5: 2750 | C5: 49.5 | D5: 48 | E5: 400 | F5: 2350
A6: 1500 | B6: 3000 | C6: 54 | D6: 48 | E6: 400 | F6: 2600
A7: 1500 | B7: 3250 | C7: 58.5 | D7: 48 | E7: 400 | F7: 2850
A8: 1500 | B8: 3500 | C8: 63 | D8: 48 | E8: 400 | F8: 3100
A9: 1500 | B9: 3750 | C9: 67.5 | D9: 48 | E9: 400 | F9: 3350
A10: 1500 | B10: 4000 | C10: 72 | D10: 48 | E10: 400 | F10: 3600
A11: 1500 | B11: 4250 | C11: 76.5 | D11: 48 | E11: 400 | F11: 3850
A12: 1500 | B12: 4500 | C12: 81 | D12: 76 | E12: 450 | F12: 4050
A13: 1500 | B13: 4750 | C13: 85.5 | D13: 76 | E13: 500 | F13: 4250
A14: 1500 | B14: 5000 | C14: 90 | D14: 76 | E14: 500 | F14: 4500
A15: 1750 | B15: 2250 | C15: 47.25 | D15: 48 | E15: 400 | F15: 1850
A16: 1750 | B16: 2500 | C16: 52.5 | D16: 48 | E16: 400 | F16: 2100
A17: 1750 | B17: 2750 | C17: 57.75 | D17: 48 | E17: 400 | F17: 2350
A18: 1750 | B18: 3000 | C18: 63 | D18: 48 | E18: 400 | F18: 2600
A19: 1750 | B19: 3250 | C19: 68.25 | D19: 48 | E19: 400 | F19: 2850
A20: 1750 | B20: 3500 | C20: 73.5 | D20: 48 | E20: 400 | F20: 3100
A21: 1750 | B21: 3750 | C21: 78.75 | D21: 48 | E21: 400 | F21: 3350
A22: 1750 | B22: 4000 | C22: 84 | D22: 48 | E22: 400 | F22: 3600
A23: 1750 | B23: 4250 | C23: 89.25 | D23: 48 | E23: 400 | F23: 3850
A24: 1750 | B24: 4500 | C24: 94.5 | D24: 76 | E24: 450 | F24: 4050
A25: 1750 | B25: 4750 | C25: 99.75 | D25: 76 | E25: 500 | F25: 4250
A26: 1750 | B26: 5000 | C26: 105 | D26: 76 | E26: 500 | F26: 4500
A27: 2000 | B27: 2250 | C27: 54 | D27: 48 | E27: 400 | F27: 1850
A28: 2000 | B28: 2500 | C28: 60 | D28: 48 | E28: 400 | F28: 2100
A29: 2000 | B29: 2750 | C29: 66 | D29: 48 | E29: 400 | F29: 2350
A30: 2000 | B30: 3000 | C30: 72 | D30: 48 | E30: 400 | F30: 2600
A31: 2000 | B31: 3250 | C31: 78 | D31: 48 | E31: 400 | F31: 2850
A32: 2000 | B32: 3500 | C32: 84 | D32: 48 | E32: 400 | F32: 3100
A33: 2000 | B33: 3750 | C33: 90 | D33: 48 | E33: 400 | F33: 3350
A34: 2000 | B34: 4000 | C34: 96 | D34: 48 | E34: 400 | F34: 3600
A35: 2000 | B35: 4250 | C35: 102 | D35: 48 | E35: 400 | F35: 3850
A36: 2000 | B36: 4500 | C36: 108 | D36: 76 | E36: 450 | F36: 4050
A37: 2000 | B37: 4750 | C37: 114 | D37: 76 | E37: 500 | F37: 4250
A38: 2000 | B38: 5000 | C38: 120 | D38: 76 | E38: 500 | F38: 4500
A39: 2250 | B39: 2250 | C39: 60.75 | D39: 48 | E39: 400 | F39: 1850
A40: 2250 | B40: 2500 | C40: 67.5 | D40: 48 | E40: 400 | F40: 2100
A41: 2250 | B41: 2750 | C41: 74.25 | D41: 48 | E41: 400 | F41: 2350
A42: 2250 | B42: 3000 | C42: 81 | D42: 48 | E42: 400 | F42: 2600
A43: 2250 | B43: 3250 | C43: 87.75 | D43: 48 | E43: 400 | F43: 2850
A44: 2250 | B44: 3500 | C44: 94.5 | D44: 48 | E44: 400 | F44: 3100
A45: 2250 | B45: 3750 | C45: 101.25 | D45: 48 | E45: 400 | F45: 3350
A46: 2250 | B46: 4000 | C46: 108 | D46: 48 | E46: 400 | F46: 3600
A47: 2250 | B47: 4250 | C47: 114.75 | D47: 48 | E47: 400 | F47: 3850
A48: 2250 | B48: 4500 | C48: 121.5 | D48: 76 | E48: 450 | F48: 4050
A49: 2250 | B49: 4750 | C49: 128.25 | D49: 76 | E49: 500 | F49: 4250
A50: 2250 | B50: 5000 | C50: 135 | D50: 76 | E50: 500 | F50: 4500
A51: 2500 | B51: 2250 | C51: 67.5 | D51: 48 | E51: 400 | F51: 1850
A52: 2500 | B52: 2500 | C52: 75 | D52: 48 | E52: 400 | F52: 2100
A53: 2500 | B53: 2750 | C53: 82.5 | D53: 48 | E53: 400 | F53: 2350
A54: 2500 | B54: 3000 | C54: 90 | D54: 48 | E54: 400 | F54: 2600
A55: 2500 | B55: 3250 | C55: 97.5 | D55: 48 | E55: 400 | F55: 2850
A56: 2500 | B56: 3500 | C56: 105 | D56: 48 | E56: 400 | F56: 3100
A57: 2500 | B57: 3750 | C57: 112.5 | D57: 48 | E57: 400 | F57: 3350
A58: 2500 | B58: 4000 | C58: 120 | D58: 48 | E58: 400 | F58: 3600
A59: 2500 | B59: 4250 | C59: 127.5 | D59: 48 | E59: 400 | F59: 3850
A60: 2500 | B60: 4500 | C60: 135 | D60: 76 | E60: 450 | F60: 4050
A61: 2500 | B61: 4750 | C61: 142.5 | D61: 76 | E61: 500 | F61: 4250
A62: 2500 | B62: 5000 | C62: 150 | D62: 76 | E62: 500 | F62: 4500
A63: 2750 | B63: 2250 | C63: 74.25 | D63: 48 | E63: 400 | F63: 1850
A64: 2750 | B64: 2500 | C64: 82.5 | D64: 48 | E64: 400 | F64: 2100
A65: 2750 | B65: 2750 | C65: 90.75 | D65: 48 | E65: 400 | F65: 2350
A66: 2750 | B66: 3000 | C66: 99 | D66: 48 | E66: 400 | F66: 2600
A67: 2750 | B67: 3250 | C67: =A67*B67*12/1000000 -> 107.25 | D67: 48 | E67: 400 | F67: =B67-E67 -> 2850
A68: 2750 | B68: 3500 | C68: 115.5 | D68: 48 | E68: 400 | F68: 3100
A69: 2750 | B69: 3750 | C69: 123.75 | D69: 48 | E69: 400 | F69: 3350
A70: 2750 | B70: 4000 | C70: 132 | D70: 60 | E70: 400 | F70: 3600
A71: 2750 | B71: 4250 | C71: 140.25 | D71: 60 | E71: 400 | F71: 3850
A72: 2750 | B72: 4500 | C72: 148.5 | D72: 76 | E72: 450 | F72: 4050
A73: 2750 | B73: 4750 | C73: 156.75 | D73: 76 | E73: 500 | F73: 4250
A74: 2750 | B74: 5000 | C74: 165 | D74: 76 | E74: 500 | F74: 4500
A75: 3000 | B75: 2250 | C75: 81 | D75: 48 | E75: 400 | F75: 1850
A76: 3000 | B76: 2500 | C76: 90 | D76: 48 | E76: 400 | F76: 2100
A77: 3000 | B77: 2750 | C77: 99 | D77: 48 | E77: 400 | F77: 2350
A78: 3000 | B78: 3000 | C78: 108 | D78: 48 | E78: 400 | F78: 2600
A79: 3000 | B79: 3250 | C79: 117 | D79: 60 | E79: 400 | F79: 2850
A80: 3000 | B80: 3500 | C80: 126 | D80: 60 | E80: 400 | F80: 3100
A81: 3000 | B81: 3750 | C81: 135 | D81: 60 | E81: 400 | F81: 3350
A82: 3000 | B82: 4000 | C82: 144 | D82: 60 | E82: 400 | F82: 3600
A83: 3000 | B83: 4250 | C83: 153 | D83: 60 | E83: 400 | F83: 3850
A84: 3000 | B84: 4500 | C84: 162 | D84: 76 | E84: 450 | F84: 4050
A85: 3000 | B85: 4750 | C85: 171 | D85: 76 | E85: 500 | F85: 4250
A86: 3000 | B86: 5000 | C86: 180 | D86: 76 | E86: 500 | F86: 4500
A87: 3250 | B87: 2250 | C87: 87.75 | D87: 48 | E87: 400 | F87: 1850
A88: 3250 | B88: 2500 | C88: 97.5 | D88: 48 | E88: 400 | F88: 2100
A89: 3250 | B89: 2750 | C89: 107.25 | D89: 60 | E89: 400 | F89: 2350
A90: 3250 | B90: 3000 | C90: 117 | D90: 60 | E90: 400 | F90: 2600
A91: 3250 | B91: 3250 | C91: 126.75 | D91: 60 | E91: 400 | F91: 2850
A92: 3250 | B92: 3500 | C92: 136.5 | D92: 60 | E92: 400 | F92: 3100
A93: 3250 | B93: 3750 | C93: 146.25 | D93: 60 | E93: 400 | F93: 3350
A94: 3250 | B94: 4000 | C94: 156 | D94: 60 | E94: 400 | F94: 3600
A95: 3250 | B95: 4250 | C95: 165.75 | D95: 60 | E95: 400 | F95: 3850
A96: 3250 | B96: 4500 | C96: 175.5 | D96: 76 | E96: 450 | F96: 4050
A97: 3250 | B97: 4750 | C97: 185.25 | D97: 76 | E97: 500 | F97: 4250
A98: 3250 | B98: 5000 | C98: 195 | D98: 76 | E98: 500 | F98: 4500
A99: 3500 | B99: 2250 | C99: 94.5 | D99: 60 | E99: 400 | F99: 1850
A100: 3500 | B100: 2500 | C100: 105 | D100: 60 | E100: 400 | F100: 2100
A101: 3500 | B101: 2750 | C101: 115.5 | D101: 60 | E101: 400 | F101: 2350
A102: 3500 | B102: 3000 | C102: 126 | D102: 60 | E102: 400 | F102: 2600
A103: 3500 | B103: 3250 | C103: 136.5 | D103: 60 | E103: 400 | F103: 2850
A104: 3500 | B104: 3500 | C104: 147 | D104: 60 | E104: 400 | F104: 3100
A105: 3500 | B105: 3750 | C105: 157.5 | D105: 60 | E105: 400 | F105: 3350
A106: 3500 | B106: 4000 | C106: 168 | D106: 60 | E106: 400 | F106: 3600
A107: 3500 | B107: 4250 | C107: 178.5 | D107: 60 | E107: 400 | F107: 3850
A108: 3500 | B108: 4500 | C108: 189 | D108: 76 | E108: 450 | F108: 4050
A109: 3500 | B109: 4750 | C109: 199.5 | D109: 76 | E109: 500 | F109: 4250
A110: 3500 | B110: 5000 | C110: 210 | D110: 76 | E110: 500 | F110: 4500
A111: 3750 | B111: 2250 | C111: 101.25 | D111: 60 | E111: 400 | F111: 1850
A112: 3750 | B112: 2500 | C112: 112.5 | D112: 60 | E112: 400 | F112: 2100
A113: 3750 | B113: 2750 | C113: 123.75 | D113: 60 | E113: 400 | F113: 2350
A114: 3750 | B114: 3000 | C114: 135 | D114: 60 | E114: 400 | F114: 2600
A115: 3750 | B115: 3250 | C115: 146.25 | D115: 60 | E115: 400 | F115: 2850
A116: 3750 | B116: 3500 | C116: 157.5 | D116: 60 | E116: 400 | F116: 3100
A117: 3750 | B117: 3750 | C117: 168.75 | D117: 60 | E117: 400 | F117: 3350
A118: 3750 | B118: 4000 | C118: 180 | D118: 60 | E118: 400 | F118: 3600
A119: 3750 | B119: 4250 | C119: 191.25 | D119: 60 | E119: 400 | F119: 3850
A120: 3750 | B120: 4500 | C120: 202.5 | D120: 76 | E120: 450 | F120: 4050
A121: 3750 | B121: 4750 | C121: 213.75 | D121: 76 | E121: 500 | F121: 4250
A122: 3750 | B122: 5000 | C122: 225 | D122: 76 | E122: 500 | F122: 4500
A123: 4000 | B123: 2250 | C123: 108 | D123: 60 | E123: 400 | F123: 1850
A124: 4000 | B124: 2500 | C124: 120 | D124: 60 | E124: 400 | F124: 2100
A125: 4000 | B125: 2750 | C125: 132 | D125: 60 | E125: 400 | F125: 2350
A126: 4000 | B126: 3000 | C126: 144 | D126: 60 | E126: 400 | F126: 2600
A127: 4000 | B127: 3250 | C127: 156 | D127: 60 | E127: 400 | F127: 2850
A128: 4000 | B128: 3500 | C128: 168 | D128: 60 | E128: 400 | F128: 3100
A129: 4000 | B129: 3750 | C129: 180 | D129: 76 | E129: 400 | F129: 3350
A130: 4000 | B130: 4000 | C130: 192 | D130: 76 | E130: 400 | F130: 3600
A131: 4000 | B131: 4250 | C131: =A131*B131*12/1000000 -> 204 | D131: 76 | E131: 450 | F131: =B131-E131 -> 3800
A132: 4000 | B132: 4500 | C132: 216 | D132: 76 | E132: 450 | F132: 4050
A133: 4000 | B133: 4750 | C133: 228 | D133: 76 | E133: 500 | F133: 4250
A134: 4000 | B134: 5000 | C134: 240 | D134: 76 | E134: 500 | F134: 4500
A135: 4250 | B135: 2250 | C135: 114.75 | D135: 60 | E135: 400 | F135: 1850
A136: 4250 | B136: 2500 | C136: 127.5 | D136: 60 | E136: 400 | F136: 2100
A137: 4250 | B137: 2750 | C137: 140.25 | D137: 60 | E137: 400 | F137: 2350
A138: 4250 | B138: 3000 | C138: 153 | D138: 60 | E138: 400 | F138: 2600
A139: 4250 | B139: 3250 | C139: 165.75 | D139: 76 | E139: 400 | F139: 2850
A140: 4250 | B140: 3500 | C140: 178.5 | D140: 76 | E140: 400 | F140: 3100
A141: 4250 | B141: 3750 | C141: 191.25 | D141: 76 | E141: 400 | F141: 3350
A142: 4250 | B142: 4000 | C142: 204 | D142: 76 | E142: 400 | F142: 3600
A143: 4250 | B143: 4250 | C143: 216.75 | D143: 76 | E143: 450 | F143: 3800
A144: 4250 | B144: 4500 | C144: 229.5 | D144: 76 | E144: 450 | F144: 4050
A145: 4250 | B145: 4750 | C145: 242.25 | D145: 76 | E145: 500 | F145: 4250
A146: 4250 | B146: 5000 | C146: 255 | D146: 76 | E146: 500 | F146: 4500
A147: 4500 | B147: 2250 | C147: 121.5 | D147: 60 | E147: 400 | F147: 1850
A148: 4500 | B148: 2500 | C148: 135 | D148: 60 | E148: 400 | F148: 2100
A149: 4500 | B149: 2750 | C149: 148.5 | D149: 76 | E149: 400 | F149: 2350
A150: 4500 | B150: 3000 | C150: 162 | D150: 76 | E150: 400 | F150: 2600
A151: 4500 | B151: 3250 | C151: 175.5 | D151: 76 | E151: 400 | F151: 2850
A152: 4500 | B152: 3500 | C152: 189 | D152: 76 | E152: 400 | F152: 3100
A153: 4500 | B153: 3750 | C153: 202.5 | D153: 76 | E153: 400 | F153: 3350
A154: 4500 | B154: 4000 | C154: 216 | D154: 76 | E154: 400 | F154: 3600
A155: 4500 | B155: 4250 | C155: 229.5 | D155: 76 | E155: 450 | F155: 3800
A156: 4500 | B156: 4500 | C156: 243 | D156: 76 | E156: 450 | F156: 4050
A157: 4500 | B157: 4750 | C157: 256.5 | D157: 76 | E157: 500 | F157: 4250
A158: 4500 | B158: 5000 | C158: 270 | D158: 76 | E158: 500 | F158: 4500
A159: 4750 | B159: 2250 | C159: 128.25 | D159: 60 | E159: 400 | F159: 1850
A160: 4750 | B160: 2500 | C160: 142.5 | D160: 76 | E160: 400 | F160: 2100
A161: 4750 | B161: 2750 | C161: 156.75 | D161: 76 | E161: 400 | F161: 2350
A162: 4750 | B162: 3000 | C162: 171 | D162: 76 | E162: 400 | F162: 2600
A163: 4750 | B163: 3250 | C163: 185.25 | D163: 76 | E163: 400 | F163: 2850
A164: 4750 | B164: 3500 | C164: 199.5 | D164: 76 | E164: 400 | F164: 3100
A165: 4750 | B165: 3750 | C165: 213.75 | D165: 76 | E165: 400 | F165: 3350
A166: 4750 | B166: 4000 | C166: 228 | D166: 76 | E166: 400 | F166: 3600
A167: 4750 | B167: 4250 | C167: 242.25 | D167: 76 | E167: 450 | F167: 3800
A168: 4750 | B168: 4500 | C168: 256.5 | D168: 76 | E168: 450 | F168: 4050
A169: 4750 | B169: 4750 | C169: 270.75 | D169: 76 | E169: 500 | F169: 4250
A170: 4750 | B170: 5000 | C170: 285 | D170: 76 | E170: 500 | F170: 4500
A171: 5000 | B171: 2250 | C171: 135 | D171: 76 | E171: 400 | F171: 1850
A172: 5000 | B172: 2500 | C172: 150 | D172: 76 | E172: 400 | F172: 2100
A173: 5000 | B173: 2750 | C173: 165 | D173: 76 | E173: 400 | F173: 2350
A174: 5000 | B174: 3000 | C174: 180 | D174: 76 | E174: 400 | F174: 2600
A175: 5000 | B175: 3250 | C175: 195 | D175: 76 | E175: 400 | F175: 2850
A176: 5000 | B176: 3500 | C176: 210 | D176: 76 | E176: 400 | F176: 3100
A177: 5000 | B177: 3750 | C177: 225 | D177: 76 | E177: 400 | F177: 3350
A178: 5000 | B178: 4000 | C178: 240 | D178: 76 | E178: 400 | F178: 3600
A179: 5000 | B179: 4250 | C179: 255 | D179: 102 | E179: 500 | F179: 3750
A180: 5000 | B180: 4500 | C180: 270 | D180: 102 | E180: 500 | F180: 4000
A181: 5000 | B181: 4750 | C181: 285 | D181: 102 | E181: 500 | F181: 4250
A182: 5000 | B182: 5000 | C182: 300 | D182: 102 | E182: 500 | F182: 4500
A183: 5250 | B183: 2250 | C183: 141.75 | D183: 76 | E183: 400 | F183: 1850
A184: 5250 | B184: 2500 | C184: 157.5 | D184: 76 | E184: 400 | F184: 2100
A185: 5250 | B185: 2750 | C185: 173.25 | D185: 76 | E185: 400 | F185: 2350
A186: 5250 | B186: 3000 | C186: 189 | D186: 76 | E186: 400 | F186: 2600
A187: 5250 | B187: 3250 | C187: 204.75 | D187: 76 | E187: 400 | F187: 2850
A188: 5250 | B188: 3500 | C188: 220.5 | D188: 76 | E188: 400 | F188: 3100
A189: 5250 | B189: 3750 | C189: 236.25 | D189: 102 | E189: 450 | F189: 3300
A190: 5250 | B190: 4050 | C190: 255.15 | D190: 102 | E190: 450 | F190: 3600
A191: 5250 | B191: 4250 | C191: 267.75 | D191: 102 | E191: 500 | F191: 3750
A192: 5250 | B192: 4500 | C192: 283.5 | D192: 102 | E192: 500 | F192: 4000
A193: 5250 | B193: 4750 | C193: 299.25 | D193: 102 | E193: 500 | F193: 4250
A194: 5250 | B194: 5000 | C194: 315 | D194: 102 | E194: 500 | F194: 4500
A195: 5500 | B195: 2250 | C195: =A195*B195*12/1000000 -> 148.5 | D195: 76 | E195: 400 | F195: =B195-E195 -> 1850
A196: 5500 | B196: 2500 | C196: 165 | D196: 76 | E196: 400 | F196: 2100
A197: 5500 | B197: 2750 | C197: 181.5 | D197: 76 | E197: 400 | F197: 2350
A198: 5500 | B198: 3000 | C198: 198 | D198: 76 | E198: 400 | F198: 2600
A199: 5500 | B199: 3250 | C199: 214.5 | D199: 102 | E199: 450 | F199: 2800
A200: 5500 | B200: 3500 | C200: 231 | D200: 102 | E200: 450 | F200: 3050
A201: 5500 | B201: 3750 | C201: 247.5 | D201: 102 | E201: 450 | F201: 3300
... 149 more rows

Sheet Verona S14 (hidden)
A2: Šířka celková "A" [mm]: | B2: výška celková [mm]: | C2: hmotnost | D2: hřídel | E2: bočnice mm | F2: výška "B" mm
A3: 1500 | B3: 2250 | C3: =A3*B3*10/1000000 -> 33.75 | D3: 48 | E3: 400 | F3: =B3-E3 -> 1850
A4: 1500 | B4: 2500 | C4: 37.5 | D4: 48 | E4: 400 | F4: 2100
A5: 1500 | B5: 2750 | C5: 41.25 | D5: 48 | E5: 400 | F5: 2350
A6: 1500 | B6: 3000 | C6: 45 | D6: 48 | E6: 400 | F6: 2600
A7: 1500 | B7: 3250 | C7: 48.75 | D7: 48 | E7: 400 | F7: 2850
A8: 1500 | B8: 3500 | C8: 52.5 | D8: 48 | E8: 400 | F8: 3100
A9: 1500 | B9: 3750 | C9: 56.25 | D9: 48 | E9: 400 | F9: 3350
A10: 1500 | B10: 4000 | C10: 60 | D10: 48 | E10: 400 | F10: 3600
A11: 1500 | B11: 4250 | C11: 63.75 | D11: 48 | E11: 400 | F11: 3850
A12: 1500 | B12: 4500 | C12: 67.5 | D12: 76 | E12: 450 | F12: 4050
A13: 1500 | B13: 4750 | C13: 71.25 | D13: 76 | E13: 500 | F13: 4250
A14: 1500 | B14: 5000 | C14: 75 | D14: 76 | E14: 500 | F14: 4500
A15: 1750 | B15: 2250 | C15: 39.375 | D15: 48 | E15: 400 | F15: 1850
A16: 1750 | B16: 2500 | C16: 43.75 | D16: 48 | E16: 400 | F16: 2100
A17: 1750 | B17: 2750 | C17: 48.125 | D17: 48 | E17: 400 | F17: 2350
A18: 1750 | B18: 3000 | C18: 52.5 | D18: 48 | E18: 400 | F18: 2600
A19: 1750 | B19: 3250 | C19: 56.875 | D19: 48 | E19: 400 | F19: 2850
A20: 1750 | B20: 3500 | C20: 61.25 | D20: 48 | E20: 400 | F20: 3100
A21: 1750 | B21: 3750 | C21: 65.625 | D21: 48 | E21: 400 | F21: 3350
A22: 1750 | B22: 4000 | C22: 70 | D22: 48 | E22: 400 | F22: 3600
A23: 1750 | B23: 4250 | C23: 74.375 | D23: 48 | E23: 400 | F23: 3850
A24: 1750 | B24: 4500 | C24: 78.75 | D24: 76 | E24: 450 | F24: 4050
A25: 1750 | B25: 4750 | C25: 83.125 | D25: 76 | E25: 500 | F25: 4250
A26: 1750 | B26: 5000 | C26: 87.5 | D26: 76 | E26: 500 | F26: 4500
A27: 2000 | B27: 2250 | C27: 45 | D27: 48 | E27: 400 | F27: 1850
A28: 2000 | B28: 2500 | C28: 50 | D28: 48 | E28: 400 | F28: 2100
A29: 2000 | B29: 2750 | C29: 55 | D29: 48 | E29: 400 | F29: 2350
A30: 2000 | B30: 3000 | C30: 60 | D30: 48 | E30: 400 | F30: 2600
A31: 2000 | B31: 3250 | C31: 65 | D31: 48 | E31: 400 | F31: 2850
A32: 2000 | B32: 3500 | C32: 70 | D32: 48 | E32: 400 | F32: 3100
A33: 2000 | B33: 3750 | C33: 75 | D33: 48 | E33: 400 | F33: 3350
A34: 2000 | B34: 4000 | C34: 80 | D34: 48 | E34: 400 | F34: 3600
A35: 2000 | B35: 4250 | C35: 85 | D35: 48 | E35: 400 | F35: 3850
A36: 2000 | B36: 4500 | C36: 90 | D36: 76 | E36: 450 | F36: 4050
A37: 2000 | B37: 4750 | C37: 95 | D37: 76 | E37: 500 | F37: 4250
A38: 2000 | B38: 5000 | C38: 100 | D38: 76 | E38: 500 | F38: 4500
A39: 2250 | B39: 2250 | C39: 50.625 | D39: 48 | E39: 400 | F39: 1850
A40: 2250 | B40: 2500 | C40: 56.25 | D40: 48 | E40: 400 | F40: 2100
A41: 2250 | B41: 2750 | C41: 61.875 | D41: 48 | E41: 400 | F41: 2350
A42: 2250 | B42: 3000 | C42: 67.5 | D42: 48 | E42: 400 | F42: 2600
A43: 2250 | B43: 3250 | C43: 73.125 | D43: 48 | E43: 400 | F43: 2850
A44: 2250 | B44: 3500 | C44: 78.75 | D44: 48 | E44: 400 | F44: 3100
A45: 2250 | B45: 3750 | C45: 84.375 | D45: 48 | E45: 400 | F45: 3350
A46: 2250 | B46: 4000 | C46: 90 | D46: 48 | E46: 400 | F46: 3600
A47: 2250 | B47: 4250 | C47: 95.625 | D47: 48 | E47: 400 | F47: 3850
A48: 2250 | B48: 4500 | C48: 101.25 | D48: 76 | E48: 450 | F48: 4050
A49: 2250 | B49: 4750 | C49: 106.875 | D49: 76 | E49: 500 | F49: 4250
A50: 2250 | B50: 5000 | C50: 112.5 | D50: 76 | E50: 500 | F50: 4500
A51: 2500 | B51: 2250 | C51: 56.25 | D51: 48 | E51: 400 | F51: 1850
A52: 2500 | B52: 2500 | C52: 62.5 | D52: 48 | E52: 400 | F52: 2100
A53: 2500 | B53: 2750 | C53: 68.75 | D53: 48 | E53: 400 | F53: 2350
A54: 2500 | B54: 3000 | C54: 75 | D54: 48 | E54: 400 | F54: 2600
A55: 2500 | B55: 3250 | C55: 81.25 | D55: 48 | E55: 400 | F55: 2850
A56: 2500 | B56: 3500 | C56: 87.5 | D56: 48 | E56: 400 | F56: 3100
A57: 2500 | B57: 3750 | C57: 93.75 | D57: 48 | E57: 400 | F57: 3350
A58: 2500 | B58: 4000 | C58: 100 | D58: 48 | E58: 400 | F58: 3600
A59: 2500 | B59: 4250 | C59: 106.25 | D59: 48 | E59: 400 | F59: 3850
A60: 2500 | B60: 4500 | C60: 112.5 | D60: 76 | E60: 450 | F60: 4050
A61: 2500 | B61: 4750 | C61: 118.75 | D61: 76 | E61: 500 | F61: 4250
A62: 2500 | B62: 5000 | C62: 125 | D62: 76 | E62: 500 | F62: 4500
A63: 2750 | B63: 2250 | C63: 61.875 | D63: 48 | E63: 400 | F63: 1850
A64: 2750 | B64: 2500 | C64: 68.75 | D64: 48 | E64: 400 | F64: 2100
A65: 2750 | B65: 2750 | C65: 75.625 | D65: 48 | E65: 400 | F65: 2350
A66: 2750 | B66: 3000 | C66: 82.5 | D66: 48 | E66: 400 | F66: 2600
A67: 2750 | B67: 3250 | C67: =A67*B67*10/1000000 -> 89.375 | D67: 48 | E67: 400 | F67: =B67-E67 -> 2850
A68: 2750 | B68: 3500 | C68: 96.25 | D68: 48 | E68: 400 | F68: 3100
A69: 2750 | B69: 3750 | C69: 103.125 | D69: 48 | E69: 400 | F69: 3350
A70: 2750 | B70: 4000 | C70: 110 | D70: 48 | E70: 400 | F70: 3600
A71: 2750 | B71: 4250 | C71: 116.875 | D71: 48 | E71: 400 | F71: 3850
A72: 2750 | B72: 4500 | C72: 123.75 | D72: 76 | E72: 450 | F72: 4050
A73: 2750 | B73: 4750 | C73: 130.625 | D73: 76 | E73: 500 | F73: 4250
A74: 2750 | B74: 5000 | C74: 137.5 | D74: 76 | E74: 500 | F74: 4500
A75: 3000 | B75: 2250 | C75: 67.5 | D75: 48 | E75: 400 | F75: 1850
A76: 3000 | B76: 2500 | C76: 75 | D76: 48 | E76: 400 | F76: 2100
A77: 3000 | B77: 2750 | C77: 82.5 | D77: 48 | E77: 400 | F77: 2350
A78: 3000 | B78: 3000 | C78: 90 | D78: 48 | E78: 400 | F78: 2600
A79: 3000 | B79: 3250 | C79: 97.5 | D79: 48 | E79: 400 | F79: 2850
A80: 3000 | B80: 3500 | C80: 105 | D80: 48 | E80: 400 | F80: 3100
A81: 3000 | B81: 3750 | C81: 112.5 | D81: 60 | E81: 400 | F81: 3350
A82: 3000 | B82: 4000 | C82: 120 | D82: 60 | E82: 400 | F82: 3600
A83: 3000 | B83: 4250 | C83: 127.5 | D83: 60 | E83: 400 | F83: 3850
A84: 3000 | B84: 4500 | C84: 135 | D84: 76 | E84: 450 | F84: 4050
A85: 3000 | B85: 4750 | C85: 142.5 | D85: 76 | E85: 500 | F85: 4250
A86: 3000 | B86: 5000 | C86: 150 | D86: 76 | E86: 500 | F86: 4500
A87: 3250 | B87: 2250 | C87: 73.125 | D87: 48 | E87: 400 | F87: 1850
A88: 3250 | B88: 2500 | C88: 81.25 | D88: 48 | E88: 400 | F88: 2100
A89: 3250 | B89: 2750 | C89: 89.375 | D89: 48 | E89: 400 | F89: 2350
A90: 3250 | B90: 3000 | C90: 97.5 | D90: 48 | E90: 400 | F90: 2600
A91: 3250 | B91: 3250 | C91: 105.625 | D91: 60 | E91: 400 | F91: 2850
A92: 3250 | B92: 3500 | C92: 113.75 | D92: 60 | E92: 400 | F92: 3100
A93: 3250 | B93: 3750 | C93: 121.875 | D93: 60 | E93: 400 | F93: 3350
A94: 3250 | B94: 4000 | C94: 130 | D94: 60 | E94: 400 | F94: 3600
A95: 3250 | B95: 4250 | C95: 138.125 | D95: 60 | E95: 400 | F95: 3850
A96: 3250 | B96: 4500 | C96: 146.25 | D96: 76 | E96: 450 | F96: 4050
A97: 3250 | B97: 4750 | C97: 154.375 | D97: 76 | E97: 500 | F97: 4250
A98: 3250 | B98: 5000 | C98: 162.5 | D98: 76 | E98: 500 | F98: 4500
A99: 3500 | B99: 2250 | C99: 78.75 | D99: 60 | E99: 400 | F99: 1850
A100: 3500 | B100: 2500 | C100: 87.5 | D100: 60 | E100: 400 | F100: 2100
A101: 3500 | B101: 2750 | C101: 96.25 | D101: 60 | E101: 400 | F101: 2350
A102: 3500 | B102: 3000 | C102: 105 | D102: 60 | E102: 400 | F102: 2600
A103: 3500 | B103: 3250 | C103: 113.75 | D103: 60 | E103: 400 | F103: 2850
A104: 3500 | B104: 3500 | C104: 122.5 | D104: 60 | E104: 400 | F104: 3100
A105: 3500 | B105: 3750 | C105: 131.25 | D105: 60 | E105: 400 | F105: 3350
A106: 3500 | B106: 4000 | C106: 140 | D106: 60 | E106: 400 | F106: 3600
A107: 3500 | B107: 4250 | C107: 148.75 | D107: 60 | E107: 400 | F107: 3850
A108: 3500 | B108: 4500 | C108: 157.5 | D108: 76 | E108: 450 | F108: 4050
A109: 3500 | B109: 4750 | C109: 166.25 | D109: 76 | E109: 500 | F109: 4250
A110: 3500 | B110: 5000 | C110: 175 | D110: 76 | E110: 500 | F110: 4500
A111: 3750 | B111: 2250 | C111: 84.375 | D111: 60 | E111: 400 | F111: 1850
A112: 3750 | B112: 2500 | C112: 93.75 | D112: 60 | E112: 400 | F112: 2100
A113: 3750 | B113: 2750 | C113: 103.125 | D113: 60 | E113: 400 | F113: 2350
A114: 3750 | B114: 3000 | C114: 112.5 | D114: 60 | E114: 400 | F114: 2600
A115: 3750 | B115: 3250 | C115: 121.875 | D115: 60 | E115: 400 | F115: 2850
A116: 3750 | B116: 3500 | C116: 131.25 | D116: 60 | E116: 400 | F116: 3100
A117: 3750 | B117: 3750 | C117: 140.625 | D117: 60 | E117: 400 | F117: 3350
A118: 3750 | B118: 4000 | C118: 150 | D118: 60 | E118: 400 | F118: 3600
A119: 3750 | B119: 4250 | C119: 159.375 | D119: 60 | E119: 400 | F119: 3850
A120: 3750 | B120: 4500 | C120: 168.75 | D120: 76 | E120: 450 | F120: 4050
A121: 3750 | B121: 4750 | C121: 178.125 | D121: 76 | E121: 500 | F121: 4250
A122: 3750 | B122: 5000 | C122: 187.5 | D122: 76 | E122: 500 | F122: 4500
A123: 4000 | B123: 2250 | C123: 90 | D123: 60 | E123: 400 | F123: 1850
A124: 4000 | B124: 2500 | C124: 100 | D124: 60 | E124: 400 | F124: 2100
A125: 4000 | B125: 2750 | C125: 110 | D125: 60 | E125: 400 | F125: 2350
A126: 4000 | B126: 3000 | C126: 120 | D126: 60 | E126: 400 | F126: 2600
A127: 4000 | B127: 3250 | C127: 130 | D127: 60 | E127: 400 | F127: 2850
A128: 4000 | B128: 3500 | C128: 140 | D128: 60 | E128: 400 | F128: 3100
A129: 4000 | B129: 3750 | C129: 150 | D129: 60 | E129: 400 | F129: 3350
A130: 4000 | B130: 4000 | C130: 160 | D130: 60 | E130: 400 | F130: 3600
A131: 4000 | B131: 4250 | C131: =A131*B131*10/1000000 -> 170 | D131: 60 | E131: 400 | F131: =B131-E131 -> 3850
A132: 4000 | B132: 4500 | C132: 180 | D132: 76 | E132: 450 | F132: 4050
A133: 4000 | B133: 4750 | C133: 190 | D133: 76 | E133: 500 | F133: 4250
A134: 4000 | B134: 5000 | C134: 200 | D134: 76 | E134: 500 | F134: 4500
A135: 4250 | B135: 2250 | C135: 95.625 | D135: 60 | E135: 400 | F135: 1850
A136: 4250 | B136: 2500 | C136: 106.25 | D136: 60 | E136: 400 | F136: 2100
A137: 4250 | B137: 2750 | C137: 116.875 | D137: 60 | E137: 400 | F137: 2350
A138: 4250 | B138: 3000 | C138: 127.5 | D138: 60 | E138: 400 | F138: 2600
A139: 4250 | B139: 3250 | C139: 138.125 | D139: 60 | E139: 400 | F139: 2850
A140: 4250 | B140: 3500 | C140: 148.75 | D140: 60 | E140: 400 | F140: 3100
A141: 4250 | B141: 3750 | C141: 159.375 | D141: 60 | E141: 400 | F141: 3350
A142: 4250 | B142: 4000 | C142: 170 | D142: 76 | E142: 400 | F142: 3600
A143: 4250 | B143: 4250 | C143: 180.625 | D143: 76 | E143: 450 | F143: 3800
A144: 4250 | B144: 4500 | C144: 191.25 | D144: 76 | E144: 450 | F144: 4050
A145: 4250 | B145: 4750 | C145: 201.875 | D145: 76 | E145: 500 | F145: 4250
A146: 4250 | B146: 5000 | C146: 212.5 | D146: 76 | E146: 500 | F146: 4500
A147: 4500 | B147: 2250 | C147: 101.25 | D147: 60 | E147: 400 | F147: 1850
A148: 4500 | B148: 2500 | C148: 112.5 | D148: 60 | E148: 400 | F148: 2100
A149: 4500 | B149: 2750 | C149: 123.75 | D149: 60 | E149: 400 | F149: 2350
A150: 4500 | B150: 3000 | C150: 135 | D150: 60 | E150: 400 | F150: 2600
A151: 4500 | B151: 3250 | C151: 146.25 | D151: 76 | E151: 400 | F151: 2850
A152: 4500 | B152: 3500 | C152: 157.5 | D152: 76 | E152: 400 | F152: 3100
A153: 4500 | B153: 3750 | C153: 168.75 | D153: 76 | E153: 400 | F153: 3350
A154: 4500 | B154: 4000 | C154: 180 | D154: 76 | E154: 400 | F154: 3600
A155: 4500 | B155: 4250 | C155: 191.25 | D155: 76 | E155: 450 | F155: 3800
A156: 4500 | B156: 4500 | C156: 202.5 | D156: 76 | E156: 450 | F156: 4050
A157: 4500 | B157: 4750 | C157: 213.75 | D157: 76 | E157: 500 | F157: 4250
A158: 4500 | B158: 5000 | C158: 225 | D158: 76 | E158: 500 | F158: 4500
A159: 4750 | B159: 2250 | C159: 106.875 | D159: 60 | E159: 400 | F159: 1850
A160: 4750 | B160: 2500 | C160: 118.75 | D160: 60 | E160: 400 | F160: 2100
A161: 4750 | B161: 2750 | C161: 130.625 | D161: 76 | E161: 400 | F161: 2350
A162: 4750 | B162: 3000 | C162: 142.5 | D162: 76 | E162: 400 | F162: 2600
A163: 4750 | B163: 3250 | C163: 154.375 | D163: 76 | E163: 400 | F163: 2850
A164: 4750 | B164: 3500 | C164: 166.25 | D164: 76 | E164: 400 | F164: 3100
A165: 4750 | B165: 3750 | C165: 178.125 | D165: 76 | E165: 400 | F165: 3350
A166: 4750 | B166: 4000 | C166: 190 | D166: 76 | E166: 400 | F166: 3600
A167: 4750 | B167: 4250 | C167: 201.875 | D167: 76 | E167: 450 | F167: 3800
A168: 4750 | B168: 4500 | C168: 213.75 | D168: 76 | E168: 450 | F168: 4050
A169: 4750 | B169: 4750 | C169: 225.625 | D169: 76 | E169: 500 | F169: 4250
A170: 4750 | B170: 5000 | C170: 237.5 | D170: 76 | E170: 500 | F170: 4500
A171: 5000 | B171: 2250 | C171: 112.5 | D171: 76 | E171: 400 | F171: 1850
A172: 5000 | B172: 2500 | C172: 125 | D172: 76 | E172: 400 | F172: 2100
A173: 5000 | B173: 2750 | C173: 137.5 | D173: 76 | E173: 400 | F173: 2350
A174: 5000 | B174: 3000 | C174: 150 | D174: 76 | E174: 400 | F174: 2600
A175: 5000 | B175: 3250 | C175: 162.5 | D175: 76 | E175: 400 | F175: 2850
A176: 5000 | B176: 3500 | C176: 175 | D176: 76 | E176: 400 | F176: 3100
A177: 5000 | B177: 3750 | C177: 187.5 | D177: 76 | E177: 400 | F177: 3350
A178: 5000 | B178: 4000 | C178: 200 | D178: 76 | E178: 400 | F178: 3600
A179: 5000 | B179: 4250 | C179: 212.5 | D179: 76 | E179: 450 | F179: 3800
A180: 5000 | B180: 4500 | C180: 225 | D180: 76 | E180: 450 | F180: 4050
A181: 5000 | B181: 4750 | C181: 237.5 | D181: 76 | E181: 500 | F181: 4250
A182: 5000 | B182: 5000 | C182: 250 | D182: 76 | E182: 500 | F182: 4500
A183: 5250 | B183: 2250 | C183: 118.125 | D183: 76 | E183: 400 | F183: 1850
A184: 5250 | B184: 2500 | C184: 131.25 | D184: 76 | E184: 400 | F184: 2100
A185: 5250 | B185: 2750 | C185: 144.375 | D185: 76 | E185: 400 | F185: 2350
A186: 5250 | B186: 3000 | C186: 157.5 | D186: 76 | E186: 400 | F186: 2600
A187: 5250 | B187: 3250 | C187: 170.625 | D187: 76 | E187: 400 | F187: 2850
A188: 5250 | B188: 3500 | C188: 183.75 | D188: 76 | E188: 400 | F188: 3100
A189: 5250 | B189: 3750 | C189: 196.875 | D189: 76 | E189: 400 | F189: 3350
A190: 5250 | B190: 4000 | C190: 210 | D190: 76 | E190: 400 | F190: 3600
A191: 5250 | B191: 4250 | C191: 223.125 | D191: 76 | E191: 450 | F191: 3800
A192: 5250 | B192: 4500 | C192: 236.25 | D192: 102 | E192: 500 | F192: 4000
A193: 5250 | B193: 4750 | C193: 249.375 | D193: 102 | E193: 500 | F193: 4250
A194: 5250 | B194: 5000 | C194: 262.5 | D194: 102 | E194: 500 | F194: 4500
A195: 5500 | B195: 2250 | C195: =A195*B195*10/1000000 -> 123.75 | D195: 76 | E195: 400 | F195: =B195-E195 -> 1850
A196: 5500 | B196: 2500 | C196: 137.5 | D196: 76 | E196: 400 | F196: 2100
A197: 5500 | B197: 2750 | C197: 151.25 | D197: 76 | E197: 400 | F197: 2350
A198: 5500 | B198: 3000 | C198: 165 | D198: 76 | E198: 400 | F198: 2600
A199: 5500 | B199: 3250 | C199: 178.75 | D199: 76 | E199: 400 | F199: 2850
A200: 5500 | B200: 3500 | C200: 192.5 | D200: 76 | E200: 400 | F200: 3100
A201: 5500 | B201: 3750 | C201: 206.25 | D201: 76 | E201: 400 | F201: 3350
... 149 more rows

Sheet Raventa (hidden)
A2: Šířka celková "A" [mm]: | B2: výška celková [mm]: | C2: hmotnost | D2: hřídel | E2: bočnice mm | F2: výška "B" mm
A3: 1500 | B3: 2250 | C3: =A3*B3*10.5/1000000 -> 35.4375 | D3: 48 | E3: 400 | F3: =B3-E3 -> 1850
A4: 1500 | B4: 2500 | C4: 39.375 | D4: 48 | E4: 400 | F4: 2100
A5: 1500 | B5: 2750 | C5: 43.3125 | D5: 48 | E5: 400 | F5: 2350
A6: 1500 | B6: 3000 | C6: 47.25 | D6: 48 | E6: 400 | F6: 2600
A7: 1500 | B7: 3250 | C7: 51.1875 | D7: 48 | E7: 400 | F7: 2850
A8: 1500 | B8: 3500 | C8: 55.125 | D8: 48 | E8: 400 | F8: 3100
A9: 1500 | B9: 3750 | C9: 59.0625 | D9: 48 | E9: 400 | F9: 3350
A10: 1500 | B10: 4000 | C10: 63 | D10: 48 | E10: 400 | F10: 3600
A11: 1500 | B11: 4250 | C11: 66.9375 | D11: 48 | E11: 400 | F11: 3850
A12: 1500 | B12: 4500 | C12: 70.875 | D12: 76 | E12: 450 | F12: 4050
A13: 1500 | B13: 4750 | C13: 74.8125 | D13: 76 | E13: 500 | F13: 4250
A14: 1500 | B14: 5000 | C14: 78.75 | D14: 76 | E14: 500 | F14: 4500
A15: 1750 | B15: 2250 | C15: 41.34375 | D15: 48 | E15: 400 | F15: 1850
A16: 1750 | B16: 2500 | C16: 45.9375 | D16: 48 | E16: 400 | F16: 2100
A17: 1750 | B17: 2750 | C17: 50.53125 | D17: 48 | E17: 400 | F17: 2350
A18: 1750 | B18: 3000 | C18: 55.125 | D18: 48 | E18: 400 | F18: 2600
A19: 1750 | B19: 3250 | C19: 59.71875 | D19: 48 | E19: 400 | F19: 2850
A20: 1750 | B20: 3500 | C20: 64.3125 | D20: 48 | E20: 400 | F20: 3100
A21: 1750 | B21: 3750 | C21: 68.90625 | D21: 48 | E21: 400 | F21: 3350
A22: 1750 | B22: 4000 | C22: 73.5 | D22: 48 | E22: 400 | F22: 3600
A23: 1750 | B23: 4250 | C23: 78.09375 | D23: 48 | E23: 400 | F23: 3850
A24: 1750 | B24: 4500 | C24: 82.6875 | D24: 76 | E24: 450 | F24: 4050
A25: 1750 | B25: 4750 | C25: 87.28125 | D25: 76 | E25: 500 | F25: 4250
A26: 1750 | B26: 5000 | C26: 91.875 | D26: 76 | E26: 500 | F26: 4500
A27: 2000 | B27: 2250 | C27: 47.25 | D27: 48 | E27: 400 | F27: 1850
A28: 2000 | B28: 2500 | C28: 52.5 | D28: 48 | E28: 400 | F28: 2100
A29: 2000 | B29: 2750 | C29: 57.75 | D29: 48 | E29: 400 | F29: 2350
A30: 2000 | B30: 3000 | C30: 63 | D30: 48 | E30: 400 | F30: 2600
A31: 2000 | B31: 3250 | C31: 68.25 | D31: 48 | E31: 400 | F31: 2850
A32: 2000 | B32: 3500 | C32: 73.5 | D32: 48 | E32: 400 | F32: 3100
A33: 2000 | B33: 3750 | C33: 78.75 | D33: 48 | E33: 400 | F33: 3350
A34: 2000 | B34: 4000 | C34: 84 | D34: 48 | E34: 400 | F34: 3600
A35: 2000 | B35: 4250 | C35: 89.25 | D35: 48 | E35: 400 | F35: 3850
A36: 2000 | B36: 4500 | C36: 94.5 | D36: 76 | E36: 450 | F36: 4050
A37: 2000 | B37: 4750 | C37: 99.75 | D37: 76 | E37: 500 | F37: 4250
A38: 2000 | B38: 5000 | C38: 105 | D38: 76 | E38: 500 | F38: 4500
A39: 2250 | B39: 2250 | C39: 53.15625 | D39: 48 | E39: 400 | F39: 1850
A40: 2250 | B40: 2500 | C40: 59.0625 | D40: 48 | E40: 400 | F40: 2100
A41: 2250 | B41: 2750 | C41: 64.96875 | D41: 48 | E41: 400 | F41: 2350
A42: 2250 | B42: 3000 | C42: 70.875 | D42: 48 | E42: 400 | F42: 2600
A43: 2250 | B43: 3250 | C43: 76.78125 | D43: 48 | E43: 400 | F43: 2850
A44: 2250 | B44: 3500 | C44: 82.6875 | D44: 48 | E44: 400 | F44: 3100
A45: 2250 | B45: 3750 | C45: 88.59375 | D45: 48 | E45: 400 | F45: 3350
A46: 2250 | B46: 4000 | C46: 94.5 | D46: 48 | E46: 400 | F46: 3600
A47: 2250 | B47: 4250 | C47: 100.40625 | D47: 48 | E47: 400 | F47: 3850
A48: 2250 | B48: 4500 | C48: 106.3125 | D48: 76 | E48: 450 | F48: 4050
A49: 2250 | B49: 4750 | C49: 112.21875 | D49: 76 | E49: 500 | F49: 4250
A50: 2250 | B50: 5000 | C50: 118.125 | D50: 76 | E50: 500 | F50: 4500
A51: 2500 | B51: 2250 | C51: 59.0625 | D51: 48 | E51: 400 | F51: 1850
A52: 2500 | B52: 2500 | C52: 65.625 | D52: 48 | E52: 400 | F52: 2100
A53: 2500 | B53: 2750 | C53: 72.1875 | D53: 48 | E53: 400 | F53: 2350
A54: 2500 | B54: 3000 | C54: 78.75 | D54: 48 | E54: 400 | F54: 2600
A55: 2500 | B55: 3250 | C55: 85.3125 | D55: 48 | E55: 400 | F55: 2850
A56: 2500 | B56: 3500 | C56: 91.875 | D56: 48 | E56: 400 | F56: 3100
A57: 2500 | B57: 3750 | C57: 98.4375 | D57: 48 | E57: 400 | F57: 3350
A58: 2500 | B58: 4000 | C58: 105 | D58: 48 | E58: 400 | F58: 3600
A59: 2500 | B59: 4250 | C59: 111.5625 | D59: 48 | E59: 400 | F59: 3850
A60: 2500 | B60: 4500 | C60: 118.125 | D60: 76 | E60: 450 | F60: 4050
A61: 2500 | B61: 4750 | C61: 124.6875 | D61: 76 | E61: 500 | F61: 4250
A62: 2500 | B62: 5000 | C62: 131.25 | D62: 76 | E62: 500 | F62: 4500
A63: 2750 | B63: 2250 | C63: 64.96875 | D63: 48 | E63: 400 | F63: 1850
A64: 2750 | B64: 2500 | C64: 72.1875 | D64: 48 | E64: 400 | F64: 2100
A65: 2750 | B65: 2750 | C65: 79.40625 | D65: 48 | E65: 400 | F65: 2350
A66: 2750 | B66: 3000 | C66: 86.625 | D66: 48 | E66: 400 | F66: 2600
A67: 2750 | B67: 3250 | C67: =A67*B67*10.5/1000000 -> 93.84375 | D67: 48 | E67: 400 | F67: =B67-E67 -> 2850
A68: 2750 | B68: 3500 | C68: 101.0625 | D68: 48 | E68: 400 | F68: 3100
A69: 2750 | B69: 3750 | C69: 108.28125 | D69: 48 | E69: 400 | F69: 3350
A70: 2750 | B70: 4000 | C70: 115.5 | D70: 48 | E70: 400 | F70: 3600
A71: 2750 | B71: 4250 | C71: 122.71875 | D71: 48 | E71: 400 | F71: 3850
A72: 2750 | B72: 4500 | C72: 129.9375 | D72: 76 | E72: 450 | F72: 4050
A73: 2750 | B73: 4750 | C73: 137.15625 | D73: 76 | E73: 500 | F73: 4250
A74: 2750 | B74: 5000 | C74: 144.375 | D74: 76 | E74: 500 | F74: 4500
A75: 3000 | B75: 2250 | C75: 70.875 | D75: 48 | E75: 400 | F75: 1850
A76: 3000 | B76: 2500 | C76: 78.75 | D76: 48 | E76: 400 | F76: 2100
A77: 3000 | B77: 2750 | C77: 86.625 | D77: 48 | E77: 400 | F77: 2350
A78: 3000 | B78: 3000 | C78: 94.5 | D78: 48 | E78: 400 | F78: 2600
A79: 3000 | B79: 3250 | C79: 102.375 | D79: 48 | E79: 400 | F79: 2850
A80: 3000 | B80: 3500 | C80: 110.25 | D80: 60 | E80: 400 | F80: 3100
A81: 3000 | B81: 3750 | C81: 118.125 | D81: 60 | E81: 400 | F81: 3350
A82: 3000 | B82: 4000 | C82: 126 | D82: 60 | E82: 400 | F82: 3600
A83: 3000 | B83: 4250 | C83: 133.875 | D83: 60 | E83: 400 | F83: 3850
A84: 3000 | B84: 4500 | C84: 141.75 | D84: 76 | E84: 450 | F84: 4050
A85: 3000 | B85: 4750 | C85: 149.625 | D85: 76 | E85: 500 | F85: 4250
A86: 3000 | B86: 5000 | C86: 157.5 | D86: 76 | E86: 500 | F86: 4500
A87: 3250 | B87: 2250 | C87: 76.78125 | D87: 48 | E87: 400 | F87: 1850
A88: 3250 | B88: 2500 | C88: 85.3125 | D88: 48 | E88: 400 | F88: 2100
A89: 3250 | B89: 2750 | C89: 93.84375 | D89: 48 | E89: 400 | F89: 2350
A90: 3250 | B90: 3000 | C90: 102.375 | D90: 60 | E90: 400 | F90: 2600
A91: 3250 | B91: 3250 | C91: 110.90625 | D91: 60 | E91: 400 | F91: 2850
A92: 3250 | B92: 3500 | C92: 119.4375 | D92: 60 | E92: 400 | F92: 3100
A93: 3250 | B93: 3750 | C93: 127.96875 | D93: 60 | E93: 400 | F93: 3350
A94: 3250 | B94: 4000 | C94: 136.5 | D94: 60 | E94: 400 | F94: 3600
A95: 3250 | B95: 4250 | C95: 145.03125 | D95: 60 | E95: 400 | F95: 3850
A96: 3250 | B96: 4500 | C96: 153.5625 | D96: 76 | E96: 450 | F96: 4050
A97: 3250 | B97: 4750 | C97: 162.09375 | D97: 76 | E97: 500 | F97: 4250
A98: 3250 | B98: 5000 | C98: 170.625 | D98: 76 | E98: 500 | F98: 4500
A99: 3500 | B99: 2250 | C99: 82.6875 | D99: 60 | E99: 400 | F99: 1850
A100: 3500 | B100: 2500 | C100: 91.875 | D100: 60 | E100: 400 | F100: 2100
A101: 3500 | B101: 2750 | C101: 101.0625 | D101: 60 | E101: 400 | F101: 2350
A102: 3500 | B102: 3000 | C102: 110.25 | D102: 60 | E102: 400 | F102: 2600
A103: 3500 | B103: 3250 | C103: 119.4375 | D103: 60 | E103: 400 | F103: 2850
A104: 3500 | B104: 3500 | C104: 128.625 | D104: 60 | E104: 400 | F104: 3100
A105: 3500 | B105: 3750 | C105: 137.8125 | D105: 60 | E105: 400 | F105: 3350
A106: 3500 | B106: 4000 | C106: 147 | D106: 60 | E106: 400 | F106: 3600
A107: 3500 | B107: 4250 | C107: 156.1875 | D107: 60 | E107: 400 | F107: 3850
A108: 3500 | B108: 4500 | C108: 165.375 | D108: 76 | E108: 450 | F108: 4050
A109: 3500 | B109: 4750 | C109: 174.5625 | D109: 76 | E109: 500 | F109: 4250
A110: 3500 | B110: 5000 | C110: 183.75 | D110: 76 | E110: 500 | F110: 4500
A111: 3750 | B111: 2250 | C111: 88.59375 | D111: 60 | E111: 400 | F111: 1850
A112: 3750 | B112: 2500 | C112: 98.4375 | D112: 60 | E112: 400 | F112: 2100
A113: 3750 | B113: 2750 | C113: 108.28125 | D113: 60 | E113: 400 | F113: 2350
A114: 3750 | B114: 3000 | C114: 118.125 | D114: 60 | E114: 400 | F114: 2600
A115: 3750 | B115: 3250 | C115: 127.96875 | D115: 60 | E115: 400 | F115: 2850
A116: 3750 | B116: 3500 | C116: 137.8125 | D116: 60 | E116: 400 | F116: 3100
A117: 3750 | B117: 3750 | C117: 147.65625 | D117: 60 | E117: 400 | F117: 3350
A118: 3750 | B118: 4000 | C118: 157.5 | D118: 60 | E118: 400 | F118: 3600
A119: 3750 | B119: 4250 | C119: 167.34375 | D119: 60 | E119: 400 | F119: 3850
A120: 3750 | B120: 4500 | C120: 177.1875 | D120: 76 | E120: 450 | F120: 4050
A121: 3750 | B121: 4750 | C121: 187.03125 | D121: 76 | E121: 500 | F121: 4250
A122: 3750 | B122: 5000 | C122: 196.875 | D122: 76 | E122: 500 | F122: 4500
A123: 4000 | B123: 2250 | C123: 94.5 | D123: 60 | E123: 400 | F123: 1850
A124: 4000 | B124: 2500 | C124: 105 | D124: 60 | E124: 400 | F124: 2100
A125: 4000 | B125: 2750 | C125: 115.5 | D125: 60 | E125: 400 | F125: 2350
A126: 4000 | B126: 3000 | C126: 126 | D126: 60 | E126: 400 | F126: 2600
A127: 4000 | B127: 3250 | C127: 136.5 | D127: 60 | E127: 400 | F127: 2850
A128: 4000 | B128: 3500 | C128: 147 | D128: 60 | E128: 400 | F128: 3100
A129: 4000 | B129: 3750 | C129: 157.5 | D129: 60 | E129: 400 | F129: 3350
A130: 4000 | B130: 4000 | C130: 168 | D130: 60 | E130: 400 | F130: 3600
A131: 4000 | B131: 4250 | C131: =A131*B131*10.5/1000000 -> 178.5 | D131: 76 | E131: 450 | F131: =B131-E131 -> 3800
A132: 4000 | B132: 4500 | C132: 189 | D132: 76 | E132: 450 | F132: 4050
A133: 4000 | B133: 4750 | C133: 199.5 | D133: 76 | E133: 500 | F133: 4250
A134: 4000 | B134: 5000 | C134: 210 | D134: 76 | E134: 500 | F134: 4500
A135: 4250 | B135: 2250 | C135: 100.40625 | D135: 60 | E135: 400 | F135: 1850
A136: 4250 | B136: 2500 | C136: 111.5625 | D136: 60 | E136: 400 | F136: 2100
A137: 4250 | B137: 2750 | C137: 122.71875 | D137: 60 | E137: 400 | F137: 2350
A138: 4250 | B138: 3000 | C138: 133.875 | D138: 60 | E138: 400 | F138: 2600
A139: 4250 | B139: 3250 | C139: 145.03125 | D139: 60 | E139: 400 | F139: 2850
A140: 4250 | B140: 3500 | C140: 156.1875 | D140: 60 | E140: 400 | F140: 3100
A141: 4250 | B141: 3750 | C141: 167.34375 | D141: 76 | E141: 400 | F141: 3350
A142: 4250 | B142: 4000 | C142: 178.5 | D142: 76 | E142: 400 | F142: 3600
A143: 4250 | B143: 4250 | C143: 189.65625 | D143: 76 | E143: 450 | F143: 3800
A144: 4250 | B144: 4500 | C144: 200.8125 | D144: 76 | E144: 450 | F144: 4050
A145: 4250 | B145: 4750 | C145: 211.96875 | D145: 76 | E145: 500 | F145: 4250
A146: 4250 | B146: 5000 | C146: 223.125 | D146: 76 | E146: 500 | F146: 4500
A147: 4500 | B147: 2250 | C147: 106.3125 | D147: 60 | E147: 400 | F147: 1850
A148: 4500 | B148: 2500 | C148: 118.125 | D148: 60 | E148: 400 | F148: 2100
A149: 4500 | B149: 2750 | C149: 129.9375 | D149: 60 | E149: 400 | F149: 2350
A150: 4500 | B150: 3000 | C150: 141.75 | D150: 76 | E150: 400 | F150: 2600
A151: 4500 | B151: 3250 | C151: 153.5625 | D151: 76 | E151: 400 | F151: 2850
A152: 4500 | B152: 3500 | C152: 165.375 | D152: 76 | E152: 400 | F152: 3100
A153: 4500 | B153: 3750 | C153: 177.1875 | D153: 76 | E153: 400 | F153: 3350
A154: 4500 | B154: 4000 | C154: 189 | D154: 76 | E154: 400 | F154: 3600
A155: 4500 | B155: 4250 | C155: 200.8125 | D155: 76 | E155: 450 | F155: 3800
A156: 4500 | B156: 4500 | C156: 212.625 | D156: 76 | E156: 450 | F156: 4050
A157: 4500 | B157: 4750 | C157: 224.4375 | D157: 76 | E157: 500 | F157: 4250
A158: 4500 | B158: 5000 | C158: 236.25 | D158: 76 | E158: 500 | F158: 4500
A159: 4750 | B159: 2250 | C159: 112.21875 | D159: 60 | E159: 400 | F159: 1850
A160: 4750 | B160: 2500 | C160: 124.6875 | D160: 60 | E160: 400 | F160: 2100
A161: 4750 | B161: 2750 | C161: 137.15625 | D161: 76 | E161: 400 | F161: 2350
A162: 4750 | B162: 3000 | C162: 149.625 | D162: 76 | E162: 400 | F162: 2600
A163: 4750 | B163: 3250 | C163: 162.09375 | D163: 76 | E163: 400 | F163: 2850
A164: 4750 | B164: 3500 | C164: 174.5625 | D164: 76 | E164: 400 | F164: 3100
A165: 4750 | B165: 3750 | C165: 187.03125 | D165: 76 | E165: 400 | F165: 3350
A166: 4750 | B166: 4000 | C166: 199.5 | D166: 76 | E166: 400 | F166: 3600
A167: 4750 | B167: 4250 | C167: 211.96875 | D167: 76 | E167: 450 | F167: 3800
A168: 4750 | B168: 4500 | C168: 224.4375 | D168: 76 | E168: 450 | F168: 4050
A169: 4750 | B169: 4750 | C169: 236.90625 | D169: 76 | E169: 500 | F169: 4250
A170: 4750 | B170: 5000 | C170: 249.375 | D170: 76 | E170: 500 | F170: 4500
A171: 5000 | B171: 2250 | C171: 118.125 | D171: 76 | E171: 400 | F171: 1850
A172: 5000 | B172: 2500 | C172: 131.25 | D172: 76 | E172: 400 | F172: 2100
A173: 5000 | B173: 2750 | C173: 144.375 | D173: 76 | E173: 400 | F173: 2350
A174: 5000 | B174: 3000 | C174: 157.5 | D174: 76 | E174: 400 | F174: 2600
A175: 5000 | B175: 3250 | C175: 170.625 | D175: 76 | E175: 400 | F175: 2850
A176: 5000 | B176: 3500 | C176: 183.75 | D176: 76 | E176: 400 | F176: 3100
A177: 5000 | B177: 3750 | C177: 196.875 | D177: 76 | E177: 400 | F177: 3350
A178: 5000 | B178: 4000 | C178: 210 | D178: 76 | E178: 400 | F178: 3600
A179: 5000 | B179: 4250 | C179: 223.125 | D179: 76 | E179: 450 | F179: 3800
A180: 5000 | B180: 4500 | C180: 236.25 | D180: 76 | E180: 450 | F180: 4050
A181: 5000 | B181: 4750 | C181: 249.375 | D181: 76 | E181: 500 | F181: 4250
A182: 5000 | B182: 5000 | C182: 262.5 | D182: 102 | E182: 500 | F182: 4500
A183: 5250 | B183: 2250 | C183: 124.03125 | D183: 76 | E183: 400 | F183: 1850
A184: 5250 | B184: 2500 | C184: 137.8125 | D184: 76 | E184: 400 | F184: 2100
A185: 5250 | B185: 2750 | C185: 151.59375 | D185: 76 | E185: 400 | F185: 2350
A186: 5250 | B186: 3000 | C186: 165.375 | D186: 76 | E186: 400 | F186: 2600
A187: 5250 | B187: 3250 | C187: 179.15625 | D187: 76 | E187: 400 | F187: 2850
A188: 5250 | B188: 3500 | C188: 192.9375 | D188: 76 | E188: 400 | F188: 3100
A189: 5250 | B189: 3750 | C189: 206.71875 | D189: 76 | E189: 400 | F189: 3350
A190: 5250 | B190: 4000 | C190: 220.5 | D190: 76 | E190: 400 | F190: 3600
A191: 5250 | B191: 4050 | C191: 223.25625 | D191: 102 | E191: 450 | F191: 3600
A192: 5250 | B192: 4500 | C192: 248.0625 | D192: 102 | E192: 500 | F192: 4000
A193: 5250 | B193: 4750 | C193: 261.84375 | D193: 102 | E193: 500 | F193: 4250
A194: 5250 | B194: 5000 | C194: 275.625 | D194: 102 | E194: 500 | F194: 4500
A195: 5500 | B195: 2250 | C195: =A195*B195*10.5/1000000 -> 129.9375 | D195: 76 | E195: 400 | F195: =B195-E195 -> 1850
A196: 5500 | B196: 2500 | C196: 144.375 | D196: 76 | E196: 400 | F196: 2100
A197: 5500 | B197: 2750 | C197: 158.8125 | D197: 76 | E197: 400 | F197: 2350
A198: 5500 | B198: 3000 | C198: 173.25 | D198: 76 | E198: 400 | F198: 2600
A199: 5500 | B199: 3250 | C199: 187.6875 | D199: 76 | E199: 400 | F199: 2850
A200: 5500 | B200: 3500 | C200: 202.125 | D200: 76 | E200: 400 | F200: 3100
A201: 5500 | B201: 3750 | C201: 216.5625 | D201: 102 | E201: 450 | F201: 3300
... 149 more rows

Sheet Bocnice (hidden)
A4: Průměr hřídele | B4: 48mm | C4: 60mm | D4: 76mm | E4: 102mm
A6: výška mříže | B6: Velikost bočnice
A7: 2000 | B7: 400 | C7: 400 | D7: 400 | E7: 450
A8: 3000 | B8: 400 | C8: 400 | D8: 400 | E8: 450
A9: 4000 | B9: 400 | C9: 400 | D9: 400 | E9: 450
A10: 5000 | B10: 400 | C10: 400 | D10: 450 | E10: 500
A11: 6000 | B11: 450 | C11: 450 | D11: 500 | E11: 500
A14: NEGATIVNÍ NÁBĚH | B14: nad celkovou výšku mříže 4500 mm
